"SERVICE_CODE","ORGANISATION_UNIT","EXPENDITURE_CATEGORY","EXPENDITURE_DESCRIPTION","EXPENDITURE_CODE","NARRATIVE","DATE","TRANSATION_CODE","NET_AMOUNT","SUPPLIER_CODE","SUPPLIER_NAME","FROM_DATE","TO_DATE","FINANCIAL_PERIOD_YEAR"
"P&V","NORTH AREA RANGERS","EMPLOYEES","APPOINTMENT EXPENSES","1301","P111495-SERVICE-RANGER VACANCY COSTS",19/4/2021 00:00:00,"246708",625.1,"SA0133","SOWERBY ADVERTISING AND COMMUNICATIONS",1/4/2021 00:00:00,25/4/2021 00:00:00,"P01-2022"
"P&V","SOUTH AREA RANGERS","EMPLOYEES","APPOINTMENT EXPENSES","1301","P111495-SERVICE-RANGERS VACANCY COSTS",19/4/2021 00:00:00,"246708",625.1,"SA0133","SOWERBY ADVERTISING AND COMMUNICATIONS",1/4/2021 00:00:00,25/4/2021 00:00:00,"P01-2022"
,"LEE VALLEY WHITE WATER CENTRE","EMPLOYEES","APPOINTMENT EXPENSES","1301","P111670-SERVICE-WWC ACTIVITY INSTRUCTOR VACANCY COSTS",25/4/2021 00:00:00,"247019",605,"SA0133","SOWERBY ADVERTISING AND COMMUNICATIONS",1/4/2021 00:00:00,25/4/2021 00:00:00,"P01-2022"
,"LEE VALLEY RIDING CENTRE","EMPLOYEES","TRAINING EXPENSES","1305","P111518-SERVICE-Training",19/4/2021 00:00:00,"246658",320.83,"BR0059","THE BRITISH HORSE SOCIETY LTD",1/4/2021 00:00:00,25/4/2021 00:00:00,"P01-2022"
,"LEE VALLEY WHITE WATER CENTRE","EMPLOYEES","TRAINING EXPENSES","1305","P109140-SERVICE-Non members fee.",21/4/2021 00:00:00,"246780",37.5,"BR0580","BRITISH CANOEING",1/4/2021 00:00:00,25/4/2021 00:00:00,"P01-2022"
"R&B","CORPORATE TRAINING","EMPLOYEES","APPRENTICE LEVY","1390","PAYE",21/4/2021 00:00:00,"246900",2262,"HM0368","HMRC",1/4/2021 00:00:00,25/4/2021 00:00:00,"P01-2022"
"P&V","SOUTH AREA RANGERS","PREMISES RELATED EXPENDITURE","UNSCHEDULED GROUND MAINTENANCE","2112","P110987-SERVICE-Ice Centre Gate Locking / Unlocking",25/4/2021 00:00:00,"246399",372.31,"GL0214","GLENDALE GROUNDS MANAGEMENT LIMITED",1/4/2021 00:00:00,25/4/2021 00:00:00,"P01-2022"
,"LEE VALLEY CARAVAN PARK","PREMISES RELATED EXPENDITURE","CONTRACT CLEANING","2120","P111357-SERVICE-Initial washrooms",1/4/2021 00:00:00,"246152",90.39,"IN0012","INITIAL WASHROOM HYGIENE",1/4/2021 00:00:00,25/4/2021 00:00:00,"P01-2022"
,"LEE VALLEY VELOPARK","PREMISES RELATED EXPENDITURE","CONTRACT CLEANING","2120","P111398-SERVICE-Window Cleaning 12/04/21",25/4/2021 00:00:00,"246782",712.13,"ELI0362","ELITE SUPPORT SERVICES (LONDON) LIMITED",1/4/2021 00:00:00,25/4/2021 00:00:00,"P01-2022"
"P&V","ABBEY GARDENS","PREMISES RELATED EXPENDITURE","GM ARBORICULTURE UNSCHEDULED","2146","P110458-SERVICE-Tree Works at Waltham Abbey Gardens",19/4/2021 00:00:00,"246933",4310,"VE0004","PRINCIPAL TREES LTD",1/4/2021 00:00:00,25/4/2021 00:00:00,"P01-2022"
"P&V","ABBEY GARDENS","PREMISES RELATED EXPENDITURE","HABITAT MANAGEMENT WORKS","2149","P111215-SERVICE-Stump Grinding at Tree Park Car Park",12/4/2021 00:00:00,"246582",1100,"VE0004","PRINCIPAL TREES LTD",1/4/2021 00:00:00,25/4/2021 00:00:00,"P01-2022"
,"LEE VALLEY FARM HAYES HILL","PREMISES RELATED EXPENDITURE","GENERAL WASTE","2211","P111373-SERVICE-skip hire",25/4/2021 00:00:00,"246694",270,"GB0239","GBN SERVICES LTD",1/4/2021 00:00:00,25/4/2021 00:00:00,"P01-2022"
"P&V","SOUTH AREA RANGERS","PREMISES RELATED EXPENDITURE","GENERAL WASTE","2211","P111399-SERVICE-Litter Clearance at WaterWorks Field, Waltham",12/4/2021 00:00:00,"246478",250,"JO0019","R G JOYCE",1/4/2021 00:00:00,25/4/2021 00:00:00,"P01-2022"
"P&V","SOUTH AREA RANGERS","PREMISES RELATED EXPENDITURE","GENERAL WASTE","2211","P111667-SERVICE-Skip at WaterWorks Centre",20/4/2021 00:00:00,"246699",270,"GB0239","GBN SERVICES LTD",1/4/2021 00:00:00,25/4/2021 00:00:00,"P01-2022"
"P&V","RIVER LEE COUNTRY PARK","PREMISES RELATED EXPENDITURE","GENERAL WASTE","2211","P111458-SERVICE-Unblock Culverts at Entrance to Fishers Green",12/4/2021 00:00:00,"246585",240,"AB0257","ABBEY DRAINS LTD",1/4/2021 00:00:00,25/4/2021 00:00:00,"P01-2022"
"P&V","RIVER LEE COUNTRY PARK","PREMISES RELATED EXPENDITURE","GENERAL WASTE","2211","P110978-SERVICE-12yd General Rubbish Skip x 2",19/4/2021 00:00:00,"246758",270,"GB0239","GBN SERVICES LTD",1/4/2021 00:00:00,25/4/2021 00:00:00,"P01-2022"
,"LEE VALLEY ICE CENTRE","PREMISES RELATED EXPENDITURE","GENERAL WASTE","2211","P111476-SERVICE-Skip Exchange April",19/4/2021 00:00:00,"246959",282.15,"OD0010","O'DONOVAN (WASTE DISPOSAL) LTD",1/4/2021 00:00:00,25/4/2021 00:00:00,"P01-2022"
"P&V","MYDDELTON HOUSE","PREMISES RELATED EXPENDITURE","BUILDING SERVICE AGREEMENTS","2220","P110736-SERVICE-Full Service and Safety Inspection for Biomas",1/4/2021 00:00:00,"244588",709.18,"MY0444","MYRIAD HEAT & POWER LTD T/A MYRIAD PLANTROOM",1/4/2021 00:00:00,25/4/2021 00:00:00,"P01-2022"
"P&V","MYDDELTON HOUSE","PREMISES RELATED EXPENDITURE","BUILDING SERVICE AGREEMENTS","2220","P110071-SERVICE-Sanitary Services 2020",12/4/2021 00:00:00,"245033",159.91,"PE0015","PHS GROUP PLC",1/4/2021 00:00:00,25/4/2021 00:00:00,"P01-2022"
"P&V","MYDDELTON HOUSE","PREMISES RELATED EXPENDITURE","BUILDING SERVICE AGREEMENTS","2220","P110071-SERVICE-Sanitary Services 2020",1/4/2021 00:00:00,"245034",22.52,"PE0015","PHS GROUP PLC",1/4/2021 00:00:00,25/4/2021 00:00:00,"P01-2022"
"P&V","MYDDELTON HOUSE","PREMISES RELATED EXPENDITURE","BUILDING SERVICE AGREEMENTS","2220","P111477-SERVICE-British Telecom Redcare Intruder Alarm - Lodg",6/4/2021 00:00:00,"245553",591.65,"AD0015","ADT FIRE & SECURITY PLC",1/4/2021 00:00:00,25/4/2021 00:00:00,"P01-2022"
"P&V","MYDDELTON HOUSE","PREMISES RELATED EXPENDITURE","BUILDING SERVICE AGREEMENTS","2220","P111478-SERVICE-British Telecom Redcare Intruder Alarm - Mydd",6/4/2021 00:00:00,"245554",613.72,"AD0015","ADT FIRE & SECURITY PLC",1/4/2021 00:00:00,25/4/2021 00:00:00,"P01-2022"
"P&V","MYDDELTON HOUSE","PREMISES RELATED EXPENDITURE","BUILDING SERVICE AGREEMENTS","2220","P110972-SERVICE-Sanitary Services",6/4/2021 00:00:00,"245924",53.44,"PE0015","PHS GROUP PLC",1/4/2021 00:00:00,25/4/2021 00:00:00,"P01-2022"
"P&V","MYDDELTON HOUSE","PREMISES RELATED EXPENDITURE","BUILDING SERVICE AGREEMENTS","2220","P111713-SERVICE-Pest Control 2021-22",19/4/2021 00:00:00,"246934",1518.76,"EN0035","LONDON BOROUGH OF ENFIELD",1/4/2021 00:00:00,25/4/2021 00:00:00,"P01-2022"
"P&V","MYDDELTON HOUSE","PREMISES RELATED EXPENDITURE","BUILDING SERVICE AGREEMENTS","2220","P111712-SERVICE-Intruder Alarm 2021-22",19/4/2021 00:00:00,"246956",1841.26,"AD0015","ADT FIRE & SECURITY PLC",1/4/2021 00:00:00,25/4/2021 00:00:00,"P01-2022"
"P&V","NORTH AREA RANGERS","PREMISES RELATED EXPENDITURE","BUILDING SERVICE AGREEMENTS","2220","P111201-SERVICE-Sanitary Disposal - Old Mill & Meadows Toilet",12/4/2021 00:00:00,"245948",17.58,"PE0015","PHS GROUP PLC",1/4/2021 00:00:00,25/4/2021 00:00:00,"P01-2022"
"P&V","NORTH AREA RANGERS","PREMISES RELATED EXPENDITURE","BUILDING SERVICE AGREEMENTS","2220","P111201-SERVICE-Sanitary Disposal - Old Mill & Meadows Toilet",25/4/2021 00:00:00,"247042",17.58,"PE0015","PHS GROUP PLC",1/4/2021 00:00:00,25/4/2021 00:00:00,"P01-2022"
"P&V","GUNPOWDER PARK","PREMISES RELATED EXPENDITURE","BUILDING SERVICE AGREEMENTS","2220","P111199-SERVICE-Sanitary Disposal - Gunpowder Park Office Toi",12/4/2021 00:00:00,"246208",2.7,"PE0015","PHS GROUP PLC",1/4/2021 00:00:00,25/4/2021 00:00:00,"P01-2022"
"P&V","GUNPOWDER PARK","PREMISES RELATED EXPENDITURE","BUILDING SERVICE AGREEMENTS","2220","P111200-SERVICE-Sanitary Disposal - Gunpowder Park - Public T",19/4/2021 00:00:00,"246686",14.3,"PE0015","PHS GROUP PLC",1/4/2021 00:00:00,25/4/2021 00:00:00,"P01-2022"
"P&V","RIVER LEE COUNTRY PARK","PREMISES RELATED EXPENDITURE","BUILDING SERVICE AGREEMENTS","2220","P111202-SERVICE-Sanitary Disposal - Fishers Green Toilets",1/4/2021 00:00:00,"245539",8.22,"PE0015","PHS GROUP PLC",1/4/2021 00:00:00,25/4/2021 00:00:00,"P01-2022"
"P&V","RIVER LEE COUNTRY PARK","PREMISES RELATED EXPENDITURE","BUILDING SERVICE AGREEMENTS","2220","P111202-SERVICE-Sanitary Disposal - Fishers Green Toilets",19/4/2021 00:00:00,"246687",8.22,"PE0015","PHS GROUP PLC",1/4/2021 00:00:00,25/4/2021 00:00:00,"P01-2022"
,"LEE VALLEY VELOPARK","PREMISES RELATED EXPENDITURE","BUILDING SERVICE AGREEMENTS","2220","P111616-SERVICE-British Telecom Redcare",19/4/2021 00:00:00,"246635",1044.47,"AD0015","ADT FIRE & SECURITY PLC",1/4/2021 00:00:00,25/4/2021 00:00:00,"P01-2022"
,"LEE VALLEY VELOPARK","PREMISES RELATED EXPENDITURE","BUILDING SERVICE AGREEMENTS","2220","P111616-SERVICE-British Telecom Redcare",19/4/2021 00:00:00,"246636",719.44,"AD0015","ADT FIRE & SECURITY PLC",1/4/2021 00:00:00,25/4/2021 00:00:00,"P01-2022"
,"LEE VALLEY VELOPARK","PREMISES RELATED EXPENDITURE","BUILDING SERVICE AGREEMENTS","2220","P111616-SERVICE-British Telecom Redcare",19/4/2021 00:00:00,"246637",654.13,"AD0015","ADT FIRE & SECURITY PLC",1/4/2021 00:00:00,25/4/2021 00:00:00,"P01-2022"
,"LEE VALLEY VELOPARK","PREMISES RELATED EXPENDITURE","BUILDING SERVICE AGREEMENTS","2220","P111616-SERVICE-British Telecom Redcare",19/4/2021 00:00:00,"246638",439.21,"AD0015","ADT FIRE & SECURITY PLC",1/4/2021 00:00:00,25/4/2021 00:00:00,"P01-2022"
,"LEE VALLEY VELOPARK","PREMISES RELATED EXPENDITURE","BUILDING SERVICE AGREEMENTS","2220","P111665-SERVICE-Contracts",19/4/2021 00:00:00,"246641",79.64,"AD0015","ADT FIRE & SECURITY PLC",1/4/2021 00:00:00,25/4/2021 00:00:00,"P01-2022"
,"LEE VALLEY VELOPARK","PREMISES RELATED EXPENDITURE","BUILDING SERVICE AGREEMENTS","2220","P111665-SERVICE-Contracts",19/4/2021 00:00:00,"246642",242.7,"AD0015","ADT FIRE & SECURITY PLC",1/4/2021 00:00:00,25/4/2021 00:00:00,"P01-2022"
,"LEE VALLEY VELOPARK","PREMISES RELATED EXPENDITURE","BUILDING SERVICE AGREEMENTS","2220","P111430-SERVICE-Swiss Timing Contract",19/4/2021 00:00:00,"246691",7585,"SW0443","THE SWATCH GROUP (UK) LIMITED",1/4/2021 00:00:00,25/4/2021 00:00:00,"P01-2022"
,"LEE VALLEY VELOPARK","PREMISES RELATED EXPENDITURE","BUILDING SERVICE AGREEMENTS","2220","P111499-SERVICE-BPC Service Contract",25/4/2021 00:00:00,"247207",10200,"BP0447","BPC ENERGY LIMITED",1/4/2021 00:00:00,25/4/2021 00:00:00,"P01-2022"
,"LV HOCKEY AND TENNIS CENTRE","PREMISES RELATED EXPENDITURE","BUILDING SERVICE AGREEMENTS","2220","P111324-SERVICE-Access Control contract 03/21 - 05/21",1/4/2021 00:00:00,"245551",266.06,"AD0015","ADT FIRE & SECURITY PLC",1/4/2021 00:00:00,25/4/2021 00:00:00,"P01-2022"
,"LV HOCKEY AND TENNIS CENTRE","PREMISES RELATED EXPENDITURE","BUILDING SERVICE AGREEMENTS","2220","P111666-SERVICE-Contracts",19/4/2021 00:00:00,"246643",376.71,"AD0015","ADT FIRE & SECURITY PLC",1/4/2021 00:00:00,25/4/2021 00:00:00,"P01-2022"
,"LV HOCKEY AND TENNIS CENTRE","PREMISES RELATED EXPENDITURE","BUILDING SERVICE AGREEMENTS","2220","P111666-SERVICE-Contracts",19/4/2021 00:00:00,"246644",195.29,"AD0015","ADT FIRE & SECURITY PLC",1/4/2021 00:00:00,25/4/2021 00:00:00,"P01-2022"
,"LV HOCKEY AND TENNIS CENTRE","PREMISES RELATED EXPENDITURE","BUILDING SERVICE AGREEMENTS","2220","P111666-SERVICE-Contracts",19/4/2021 00:00:00,"246645",150.22,"AD0015","ADT FIRE & SECURITY PLC",1/4/2021 00:00:00,25/4/2021 00:00:00,"P01-2022"
,"LV HOCKEY AND TENNIS CENTRE","PREMISES RELATED EXPENDITURE","BUILDING SERVICE AGREEMENTS","2220","P111666-SERVICE-Contracts",19/4/2021 00:00:00,"246646",82.62,"AD0015","ADT FIRE & SECURITY PLC",1/4/2021 00:00:00,25/4/2021 00:00:00,"P01-2022"
,"LV LEISURE CENTRE CAMPSITE","PREMISES RELATED EXPENDITURE","BUILDING SERVICE AGREEMENTS","2220","P111397-SERVICE-cleaning service supply",6/4/2021 00:00:00,"245803",142.29,"PE0015","PHS GROUP PLC",1/4/2021 00:00:00,25/4/2021 00:00:00,"P01-2022"
,"LEE VALLEY WHITE WATER CENTRE","PREMISES RELATED EXPENDITURE","BUILDING SERVICE AGREEMENTS","2220","P111115-SERVICE-Maint contract Bathing water sampling",1/4/2021 00:00:00,"244565",650.76,"KI0090","KINGFISHER ENVIRONMENTAL SERVICES LTD",1/4/2021 00:00:00,25/4/2021 00:00:00,"P01-2022"
,"LEE VALLEY WHITE WATER CENTRE","PREMISES RELATED EXPENDITURE","BUILDING SERVICE AGREEMENTS","2220","P111254-SERVICE-Hygiene Services April 2021 to 2022",1/4/2021 00:00:00,"245795",168.6,"PE0015","PHS GROUP PLC",1/4/2021 00:00:00,25/4/2021 00:00:00,"P01-2022"
,"LEE VALLEY WHITE WATER CENTRE","PREMISES RELATED EXPENDITURE","BUILDING SERVICE AGREEMENTS","2220","P111254-SERVICE-Hygiene Services April 2021 to 2022",12/4/2021 00:00:00,"246205",168.6,"PE0015","PHS GROUP PLC",1/4/2021 00:00:00,25/4/2021 00:00:00,"P01-2022"
,"LEE VALLEY WHITE WATER CENTRE","PREMISES RELATED EXPENDITURE","BUILDING SERVICE AGREEMENTS","2220","P111560-SERVICE-Maint of Intruder Alarm System 01.04.21 to 30",13/4/2021 00:00:00,"246632",469.43,"AD0015","ADT FIRE & SECURITY PLC",1/4/2021 00:00:00,25/4/2021 00:00:00,"P01-2022"
,"LEE VALLEY WHITE WATER CENTRE","PREMISES RELATED EXPENDITURE","BUILDING SERVICE AGREEMENTS","2220","P111559-SERVICE-Maint of Access Control System",19/4/2021 00:00:00,"246633",609.01,"AD0015","ADT FIRE & SECURITY PLC",1/4/2021 00:00:00,25/4/2021 00:00:00,"P01-2022"
,"LEE VALLEY WHITE WATER CENTRE","PREMISES RELATED EXPENDITURE","BUILDING SERVICE AGREEMENTS","2220","P111558-SERVICE-BT Redcare 01.04.21 to 30.06.21",13/4/2021 00:00:00,"246634",80.87,"AD0015","ADT FIRE & SECURITY PLC",1/4/2021 00:00:00,25/4/2021 00:00:00,"P01-2022"
,"LEE VALLEY WHITE WATER CENTRE","PREMISES RELATED EXPENDITURE","BUILDING SERVICE AGREEMENTS","2220","P111558-SERVICE-Maint and Mon of Fire System 01.04.21 to 30.0",13/4/2021 00:00:00,"246634",1091.41,"AD0015","ADT FIRE & SECURITY PLC",1/4/2021 00:00:00,25/4/2021 00:00:00,"P01-2022"
"P&V","MYDDELTON HOUSE","PREMISES RELATED EXPENDITURE","BUILDING REPAIRS & MAINTENANCE","2222","P111489-SERVICE-To supply and install replacement water heate",19/4/2021 00:00:00,"246929",413.12,"GI0137","R & P GIBBS LIMITED",1/4/2021 00:00:00,25/4/2021 00:00:00,"P01-2022"
"P&V","MYDDELTON HOUSE","PREMISES RELATED EXPENDITURE","BUILDING REPAIRS & MAINTENANCE","2222","P111823-SERVICE-Work on Myddelton House & Visitor Centre Door",25/4/2021 00:00:00,"247161",356,"AB0435","ABSOLUTE DOOR SERVICES ESSEX LTD",1/4/2021 00:00:00,25/4/2021 00:00:00,"P01-2022"
"CEO","RESIDENTIAL ACCOMMODATION","PREMISES RELATED EXPENDITURE","BUILDING REPAIRS & MAINTENANCE","2222","P111731-SERVICE-Myddelton House Heating Issue",25/4/2021 00:00:00,"246243",267.3,"GI0137","R & P GIBBS LIMITED",1/4/2021 00:00:00,25/4/2021 00:00:00,"P01-2022"
"CEO","RESIDENTIAL ACCOMMODATION","PREMISES RELATED EXPENDITURE","BUILDING REPAIRS & MAINTENANCE","2222","KENDALL & SONS LIMITED",21/4/2021 00:00:00,"246569",345.6,"KE0023","KENDALL & SONS LIMITED",1/4/2021 00:00:00,25/4/2021 00:00:00,"P01-2022"
"CEO","RESIDENTIAL ACCOMMODATION","PREMISES RELATED EXPENDITURE","BUILDING REPAIRS & MAINTENANCE","2222","KENDALL & SONS LIMITED",21/4/2021 00:00:00,"246569",923.6,"KE0023","KENDALL & SONS LIMITED",1/4/2021 00:00:00,25/4/2021 00:00:00,"P01-2022"
"CEO","RESIDENTIAL ACCOMMODATION","PREMISES RELATED EXPENDITURE","BUILDING REPAIRS & MAINTENANCE","2222","KENDALL & SONS LIMITED",21/4/2021 00:00:00,"246569",-1269.2,"KE0023","KENDALL & SONS LIMITED",1/4/2021 00:00:00,25/4/2021 00:00:00,"P01-2022"
"CEO","RESIDENTIAL ACCOMMODATION","PREMISES RELATED EXPENDITURE","BUILDING REPAIRS & MAINTENANCE","2222","P108114-SERVICE-9 Pickets Lock Lane",21/4/2021 00:00:00,"246569",1269.2,"KE0023","KENDALL & SONS LIMITED",1/4/2021 00:00:00,25/4/2021 00:00:00,"P01-2022"
"CEO","RESIDENTIAL ACCOMMODATION","PREMISES RELATED EXPENDITURE","BUILDING REPAIRS & MAINTENANCE","2222","P109330-SERVICE-Unblock Gully to Kitchen at Dobbs Weir",12/4/2021 00:00:00,"246570",334,"KE0023","KENDALL & SONS LIMITED",1/4/2021 00:00:00,25/4/2021 00:00:00,"P01-2022"
"CEO","RESIDENTIAL ACCOMMODATION","PREMISES RELATED EXPENDITURE","BUILDING REPAIRS & MAINTENANCE","2222","P109331-SERVICE-Various Works at 2 Bungalow on 21/09/20",20/4/2021 00:00:00,"246572",440,"KE0023","KENDALL & SONS LIMITED",1/4/2021 00:00:00,25/4/2021 00:00:00,"P01-2022"
"CEO","RESIDENTIAL ACCOMMODATION","PREMISES RELATED EXPENDITURE","BUILDING REPAIRS & MAINTENANCE","2222","KENDALL & SONS LIMITED",25/4/2021 00:00:00,"247226",100,"KE0023","KENDALL & SONS LIMITED",1/4/2021 00:00:00,25/4/2021 00:00:00,"P01-2022"
"CEO","RESIDENTIAL ACCOMMODATION","PREMISES RELATED EXPENDITURE","BUILDING REPAIRS & MAINTENANCE","2222","KENDALL & SONS LIMITED",25/4/2021 00:00:00,"247226",-520,"KE0023","KENDALL & SONS LIMITED",1/4/2021 00:00:00,25/4/2021 00:00:00,"P01-2022"
"CEO","RESIDENTIAL ACCOMMODATION","PREMISES RELATED EXPENDITURE","BUILDING REPAIRS & MAINTENANCE","2222","KENDALL & SONS LIMITED",25/4/2021 00:00:00,"247226",420,"KE0023","KENDALL & SONS LIMITED",1/4/2021 00:00:00,25/4/2021 00:00:00,"P01-2022"
"CEO","RESIDENTIAL ACCOMMODATION","PREMISES RELATED EXPENDITURE","BUILDING REPAIRS & MAINTENANCE","2222","P111705-SERVICE-Holyfield Annexe ext repairs",25/4/2021 00:00:00,"247226",520,"KE0023","KENDALL & SONS LIMITED",1/4/2021 00:00:00,25/4/2021 00:00:00,"P01-2022"
"CEO","COMMERCIAL ACCOMMODATION","PREMISES RELATED EXPENDITURE","BUILDING REPAIRS & MAINTENANCE","2222","P111734-SERVICE-LV Forge Barrier",25/4/2021 00:00:00,"246928",282.86,"NA0171","NAIVETTE SERVICES LTD",1/4/2021 00:00:00,25/4/2021 00:00:00,"P01-2022"
,"LEE VALLEY MARINA SPRINGFIELD","PREMISES RELATED EXPENDITURE","BUILDING REPAIRS & MAINTENANCE","2222","P111626-SERVICE-General Maintenance",19/4/2021 00:00:00,"246893",250,"DE0013","DENNIS SECURITY CENTRE",1/4/2021 00:00:00,25/4/2021 00:00:00,"P01-2022"
,"LEE VALLEY MARINA SPRINGFIELD","PREMISES RELATED EXPENDITURE","BUILDING REPAIRS & MAINTENANCE","2222","P111728-SERVICE-Fire alarm system maintenance",19/4/2021 00:00:00,"246957",353.15,"AD0015","ADT FIRE & SECURITY PLC",1/4/2021 00:00:00,25/4/2021 00:00:00,"P01-2022"
,"LEE VALLEY MARINA SPRINGFIELD","PREMISES RELATED EXPENDITURE","BUILDING REPAIRS & MAINTENANCE","2222","P111725-SERVICE-Security Annual maintenance visit inc adhoc v",25/4/2021 00:00:00,"247050",1500,"DE0013","DENNIS SECURITY CENTRE",1/4/2021 00:00:00,25/4/2021 00:00:00,"P01-2022"
,"LEE VALLEY MARINA SPRINGFIELD","PREMISES RELATED EXPENDITURE","BUILDING REPAIRS & MAINTENANCE","2222","P111626-SERVICE-General Maintenance",25/4/2021 00:00:00,"247182",85,"DE0013","DENNIS SECURITY CENTRE",1/4/2021 00:00:00,25/4/2021 00:00:00,"P01-2022"
,"LEE VALLEY MARINA STANSTEAD","PREMISES RELATED EXPENDITURE","BUILDING REPAIRS & MAINTENANCE","2222","P111527-SERVICE-repair to boiler",12/4/2021 00:00:00,"246459",76,"TA0204","TAYLOR HEATING",1/4/2021 00:00:00,25/4/2021 00:00:00,"P01-2022"
,"LEE VALLEY MARINA STANSTEAD","PREMISES RELATED EXPENDITURE","BUILDING REPAIRS & MAINTENANCE","2222","P111669-SERVICE-supply and fit suspension tank and p/l valve",19/4/2021 00:00:00,"246719",271.75,"TA0204","TAYLOR HEATING",1/4/2021 00:00:00,25/4/2021 00:00:00,"P01-2022"
,"LEE VALLEY MARINA STANSTEAD","PREMISES RELATED EXPENDITURE","BUILDING REPAIRS & MAINTENANCE","2222","P111737-SERVICE-PEST CONTROL BY BOATS ON BACK STREAM",21/4/2021 00:00:00,"247023",60,"AC0467","ACE PEST CONTROL",1/4/2021 00:00:00,25/4/2021 00:00:00,"P01-2022"
"P&V","LEE VALLEY FARM HOLYFIELDHALL","PREMISES RELATED EXPENDITURE","BUILDING REPAIRS & MAINTENANCE","2222","P111837-SERVICE-Electrical Work",25/4/2021 00:00:00,"247039",65,"BR0018","BRADSHAW ELECTRICAL LIMITED",1/4/2021 00:00:00,25/4/2021 00:00:00,"P01-2022"
"P&V","LEE VALLEY FARM HOLYFIELDHALL","PREMISES RELATED EXPENDITURE","BUILDING REPAIRS & MAINTENANCE","2222","P111466-SERVICE-Building Repairs",25/4/2021 00:00:00,"247201",35.49,"JE0011","SAINT-GOBAIN BUILDING DISTRIBUTION",1/4/2021 00:00:00,25/4/2021 00:00:00,"P01-2022"
"P&V","LEE VALLEY FARM HOLYFIELDHALL","PREMISES RELATED EXPENDITURE","BUILDING REPAIRS & MAINTENANCE","2222","P111466-SERVICE-Building Repairs",25/4/2021 00:00:00,"247202",376.81,"JE0011","SAINT-GOBAIN BUILDING DISTRIBUTION",1/4/2021 00:00:00,25/4/2021 00:00:00,"P01-2022"
,"LEE VALLEY FARM HAYES HILL","PREMISES RELATED EXPENDITURE","BUILDING REPAIRS & MAINTENANCE","2222","P111410-SERVICE-remove blockage from ladies toilets",25/4/2021 00:00:00,"246452",120,"AB0257","ABBEY DRAINS LTD",1/4/2021 00:00:00,25/4/2021 00:00:00,"P01-2022"
"P&V","GUNPOWDER PARK","PREMISES RELATED EXPENDITURE","BUILDING REPAIRS & MAINTENANCE","2222","P111422-SERVICE-Replace Toilet Seat ar Gun Powder Park",19/4/2021 00:00:00,"246673",135,"RE0094","REACT 2 IT (BUILDING & REFURBISHMENT) LTD",1/4/2021 00:00:00,25/4/2021 00:00:00,"P01-2022"
"P&V","RIVER LEE COUNTRY PARK","PREMISES RELATED EXPENDITURE","BUILDING REPAIRS & MAINTENANCE","2222","P111522-SERVICE-Unblock Fishers Green Toilets",19/4/2021 00:00:00,"246745",98,"KE0023","KENDALL & SONS LIMITED",1/4/2021 00:00:00,25/4/2021 00:00:00,"P01-2022"
"P&V","RIVER LEE COUNTRY PARK","PREMISES RELATED EXPENDITURE","BUILDING REPAIRS & MAINTENANCE","2222","P111643-SERVICE-Unblock Toilets at Fishers Green",25/4/2021 00:00:00,"247004",140,"KE0023","KENDALL & SONS LIMITED",1/4/2021 00:00:00,25/4/2021 00:00:00,"P01-2022"
,"LEE VALLEY RIDING CENTRE","PREMISES RELATED EXPENDITURE","BUILDING REPAIRS & MAINTENANCE","2222","P111716-SERVICE-redcare",19/4/2021 00:00:00,"246630",253.45,"AD0015","ADT FIRE & SECURITY PLC",1/4/2021 00:00:00,25/4/2021 00:00:00,"P01-2022"
,"LEE VALLEY RIDING CENTRE","PREMISES RELATED EXPENDITURE","BUILDING REPAIRS & MAINTENANCE","2222","P111716-SERVICE-fire alarm maintenance April - July",19/4/2021 00:00:00,"246631",827.97,"AD0015","ADT FIRE & SECURITY PLC",1/4/2021 00:00:00,25/4/2021 00:00:00,"P01-2022"
,"LEE VALLEY ICE CENTRE","PREMISES RELATED EXPENDITURE","BUILDING REPAIRS & MAINTENANCE","2222","P109436-SERVICE-Shower Works",25/4/2021 00:00:00,"246223",370.82,"GI0137","R & P GIBBS LIMITED",1/4/2021 00:00:00,25/4/2021 00:00:00,"P01-2022"
"P&V","FORMER LV LIDO SITE","PREMISES RELATED EXPENDITURE","BUILDING REPAIRS & MAINTENANCE","2222","P111057-SERVICE-Install 50 x Bollards at Turnford Brook Car P",25/4/2021 00:00:00,"247052",1400,"BU0090","BUSH WHEELER SERVICES LTD",1/4/2021 00:00:00,25/4/2021 00:00:00,"P01-2022"
,"LV LEISURE CENTRE CAMPSITE","PREMISES RELATED EXPENDITURE","BUILDING REPAIRS & MAINTENANCE","2222","P111721-SERVICE-washing machine fix",20/4/2021 00:00:00,"246909",251,"AL0434","ALLSOP & FRANCIS",1/4/2021 00:00:00,25/4/2021 00:00:00,"P01-2022"
,"LEE VALLEY ATHLETICS CENTRE","PREMISES RELATED EXPENDITURE","BUILDING REPAIRS & MAINTENANCE","2222","P111206-SERVICE-LVAC REpairs to toilet shower and clean track",21/4/2021 00:00:00,"246684",480,"WR0162","MR SIMON WRIGHT",1/4/2021 00:00:00,25/4/2021 00:00:00,"P01-2022"
,"LEE VALLEY WHITE WATER CENTRE","PREMISES RELATED EXPENDITURE","BUILDING REPAIRS & MAINTENANCE","2222","P111015-SERVICE-Lift repairs",21/4/2021 00:00:00,"246948",1302.42,"OT0080","OTIS LIMITED",1/4/2021 00:00:00,25/4/2021 00:00:00,"P01-2022"
,"LEE VALLEY WHITE WATER CENTRE","PREMISES RELATED EXPENDITURE","BUILDING REPAIRS & MAINTENANCE","2222","P111020-SERVICE-Emergency lighting repair",25/4/2021 00:00:00,"247065",1649.08,"GI0137","R & P GIBBS LIMITED",1/4/2021 00:00:00,25/4/2021 00:00:00,"P01-2022"
,"LEE VALLEY ATHLETICS CENTRE","PREMISES RELATED EXPENDITURE","ENGINEERING SERVICES CONTRACT","2223","P111596-SERVICE-ANNUAL SANITARY, NAPPY, AIR FRESHENERS",14/4/2021 00:00:00,"245036",3859.59,"PE0015","PHS GROUP PLC",1/4/2021 00:00:00,25/4/2021 00:00:00,"P01-2022"
,"LEE VALLEY ATHLETICS CENTRE","PREMISES RELATED EXPENDITURE","ENGINEERING SERVICES CONTRACT","2223","P111590-SERVICE-LVAC CARE COMMUNICATION SYSTEM 21/22",19/4/2021 00:00:00,"245550",90.98,"AD0015","ADT FIRE & SECURITY PLC",1/4/2021 00:00:00,25/4/2021 00:00:00,"P01-2022"
,"LEE VALLEY WHITE WATER CENTRE","PREMISES RELATED EXPENDITURE","ENGINEERING SERVICES CONTRACT","2223","P111073-SERVICE-Service Contract Renewal for the disinfection",19/4/2021 00:00:00,"246717",9500,"BR0378","BROADWATER TECHNOLOGIES LTD",1/4/2021 00:00:00,25/4/2021 00:00:00,"P01-2022"
"CEO","COMMERCIAL ACCOMMODATION","PREMISES RELATED EXPENDITURE","EAST HALE ALLOTMENTS","2261","P111732-SERVICE-Alotment Bins",25/4/2021 00:00:00,"246429",79.61,"CL0037","VEOLIA ES (UK) LTD",1/4/2021 00:00:00,25/4/2021 00:00:00,"P01-2022"
"CEO","COMMERCIAL ACCOMMODATION","PREMISES RELATED EXPENDITURE","EAST HALE ALLOTMENTS","2261","P108003-SERVICE-East Hale Allotments",21/4/2021 00:00:00,"246568",761.6,"KE0023","KENDALL & SONS LIMITED",1/4/2021 00:00:00,25/4/2021 00:00:00,"P01-2022"
"P&V","MYDDELTON HOUSE","PREMISES RELATED EXPENDITURE","ENERGY COSTS (ELECTRICITY)","2332","KENT COUNTY COUNCIL (KCS)",25/4/2021 00:00:00,"247002",1119.22,"KE0007","KENT COUNTY COUNCIL (KCS)",1/4/2021 00:00:00,25/4/2021 00:00:00,"P01-2022"
,"LEE VALLEY RIDING CENTRE","PREMISES RELATED EXPENDITURE","ENERGY COSTS (ELECTRICITY)","2332","EDF ENERGY 1 LIMITED",25/4/2021 00:00:00,"247215",74.17,"ED0077","EDF ENERGY 1 LIMITED",1/4/2021 00:00:00,25/4/2021 00:00:00,"P01-2022"
,"LEE VALLEY CARAVAN PARK","PREMISES RELATED EXPENDITURE","ENERGY COSTS (GAS)","2333","P111701-SERVICE-Avanti Gas",20/4/2021 00:00:00,"246937",227.24,"AV0327","AVANTI GAS LIMITED",1/4/2021 00:00:00,25/4/2021 00:00:00,"P01-2022"
,"LEE VALLEY CARAVAN PARK","PREMISES RELATED EXPENDITURE","ENERGY COSTS (GAS)","2333","P111702-SERVICE-Avanti Gas",19/4/2021 00:00:00,"246938",8522.84,"AV0327","AVANTI GAS LIMITED",1/4/2021 00:00:00,25/4/2021 00:00:00,"P01-2022"
"P&V","MYDDELTON HOUSE GARDENS","PREMISES RELATED EXPENDITURE","ENERGY COSTS (GAS)","2333","KENT COUNTY COUNCIL (KCS)",25/4/2021 00:00:00,"246971",708.7,"KE0007","KENT COUNTY COUNCIL (KCS)",1/4/2021 00:00:00,25/4/2021 00:00:00,"P01-2022"
,"LEE VALLEY RIDING CENTRE","PREMISES RELATED EXPENDITURE","ENERGY COSTS (GAS)","2333","BRITISH GAS BUSINESS",25/4/2021 00:00:00,"247211",121.82,"BR0029","BRITISH GAS BUSINESS",1/4/2021 00:00:00,25/4/2021 00:00:00,"P01-2022"
"P&V","KING GEORGE RESERVOIR SOUTH","PREMISES RELATED EXPENDITURE","RENT (EXTERNAL)","2442","THAMES WATER UTILITIES LIMITED",25/4/2021 00:00:00,"247214",200,"TH0020","THAMES WATER UTILITIES LIMITED-  SAVILLS",1/4/2021 00:00:00,25/4/2021 00:00:00,"P01-2022"
"P&V","MYDDELTON HOUSE","PREMISES RELATED EXPENDITURE","BUSINESS RATES","2444","LONDON BOROUGH OF ENFIELD",20/4/2021 00:00:00,"246613",102144,"EN0035","LONDON BOROUGH OF ENFIELD",1/4/2021 00:00:00,25/4/2021 00:00:00,"P01-2022"
"CEO","COMMERCIAL ACCOMMODATION","PREMISES RELATED EXPENDITURE","BUSINESS RATES","2444","BOROUGH OF BROXBOURNE",12/4/2021 00:00:00,"245911",5376,"BR0016","BOROUGH OF BROXBOURNE",1/4/2021 00:00:00,25/4/2021 00:00:00,"P01-2022"
"P&V","RYE HOUSE GATEHOUSE","PREMISES RELATED EXPENDITURE","BUSINESS RATES","2444","EAST HERTS COUNCIL",19/4/2021 00:00:00,"245828",867.82,"EA0086","EAST HERTS COUNCIL",1/4/2021 00:00:00,25/4/2021 00:00:00,"P01-2022"
"CEO","RESIDENTIAL ACCOMMODATION","PREMISES RELATED EXPENDITURE","COUNCIL TAX","2445","BOROUGH OF BROXBOURNE",6/4/2021 00:00:00,"245824",2435.82,"BR0016","BOROUGH OF BROXBOURNE",1/4/2021 00:00:00,25/4/2021 00:00:00,"P01-2022"
"P&V","LEE VALLEY FARM HOLYFIELDHALL","PREMISES RELATED EXPENDITURE","COUNCIL TAX","2445","EPPING FOREST DISTRICT COUNCIL",6/4/2021 00:00:00,"245558",2306.68,"EP0025","EPPING FOREST DISTRICT COUNCIL",1/4/2021 00:00:00,25/4/2021 00:00:00,"P01-2022"
"P&V","LEE VALLEY FARM HOLYFIELDHALL","PREMISES RELATED EXPENDITURE","COUNCIL TAX","2445","EPPING FOREST DISTRICT COUNCIL",7/4/2021 00:00:00,"245825",1677.58,"EP0025","EPPING FOREST DISTRICT COUNCIL",1/4/2021 00:00:00,25/4/2021 00:00:00,"P01-2022"
,"LEE VALLEY FARM HAYES HILL","PREMISES RELATED EXPENDITURE","COUNCIL TAX","2445","EPPING FOREST DISTRICT COUNCIL",6/4/2021 00:00:00,"245559",1887.28,"EP0025","EPPING FOREST DISTRICT COUNCIL",1/4/2021 00:00:00,25/4/2021 00:00:00,"P01-2022"
,"LEE VALLEY RIDING CENTRE","PREMISES RELATED EXPENDITURE","COUNCIL TAX","2445","LONDON BOROUGH OF WALTHAM FORE",1/4/2021 00:00:00,"245829",1242.11,"WA0005","LONDON BOROUGH OF WALTHAM FOREST",1/4/2021 00:00:00,25/4/2021 00:00:00,"P01-2022"
,"LEE VALLEY RIDING CENTRE","PREMISES RELATED EXPENDITURE","COUNCIL TAX","2445","LONDON BOROUGH OF WALTHAM FORE",1/4/2021 00:00:00,"245830",1242.11,"WA0005","LONDON BOROUGH OF WALTHAM FOREST",1/4/2021 00:00:00,25/4/2021 00:00:00,"P01-2022"
,"LEE VALLEY RIDING CENTRE","PREMISES RELATED EXPENDITURE","COUNCIL TAX","2445","LONDON BOROUGH OF WALTHAM FORE",1/4/2021 00:00:00,"245831",1242.11,"WA0005","LONDON BOROUGH OF WALTHAM FOREST",1/4/2021 00:00:00,25/4/2021 00:00:00,"P01-2022"
"CEO","RESIDENTIAL ACCOMMODATION","PREMISES RELATED EXPENDITURE","PROPERTY MANAGEMT/LETTING FEES","2447","P111407-SERVICE-Fees/warranty Pindar Cottage",6/4/2021 00:00:00,"245849",1440,"CA0165","CASTLES",1/4/2021 00:00:00,25/4/2021 00:00:00,"P01-2022"
"CEO","RESIDENTIAL ACCOMMODATION","PREMISES RELATED EXPENDITURE","PROPERTY MANAGEMT/LETTING FEES","2447","P111407-SERVICE-Fees/warranty Pindar Cottage",6/4/2021 00:00:00,"245851",309.6,"CA0165","CASTLES",1/4/2021 00:00:00,25/4/2021 00:00:00,"P01-2022"
"P&V","MYDDELTON HOUSE","PREMISES RELATED EXPENDITURE","WATER","2555","CASTLE WATER LIMITED",19/4/2021 00:00:00,"246964",5982.94,"CA0625","CASTLE WATER LIMITED",1/4/2021 00:00:00,25/4/2021 00:00:00,"P01-2022"
,"LEE VALLEY FARM HAYES HILL","PREMISES RELATED EXPENDITURE","WATER","2555","ENVIRONMENT AGENCY",21/4/2021 00:00:00,"246607",1861,"EN0024","ENVIRONMENT AGENCY",1/4/2021 00:00:00,25/4/2021 00:00:00,"P01-2022"
,"LEE VALLEY CARAVAN PARK","PREMISES RELATED EXPENDITURE","WATER","2555","P110175-SERVICE-Kingfisher Enviromental",19/4/2021 00:00:00,"246718",339.71,"KI0090","KINGFISHER ENVIRONMENTAL SERVICES LTD",1/4/2021 00:00:00,25/4/2021 00:00:00,"P01-2022"
"P&V","EAST INDIA DOCK AND BOW CREEK","PREMISES RELATED EXPENDITURE","WATER","2555","CASTLE WATER LIMITED",19/4/2021 00:00:00,"246966",26.4,"CA0625","CASTLE WATER LIMITED",1/4/2021 00:00:00,25/4/2021 00:00:00,"P01-2022"
"P&V","RIVER LEE COUNTRY PARK","PREMISES RELATED EXPENDITURE","WATER","2555","CASTLE WATER LIMITED",19/4/2021 00:00:00,"246965",156.81,"CA0625","CASTLE WATER LIMITED",1/4/2021 00:00:00,25/4/2021 00:00:00,"P01-2022"
"P&V","RIVER LEE COUNTRY PARK","PREMISES RELATED EXPENDITURE","WATER","2555","CASTLE WATER LIMITED",19/4/2021 00:00:00,"246967",194.72,"CA0625","CASTLE WATER LIMITED",1/4/2021 00:00:00,25/4/2021 00:00:00,"P01-2022"
"P&V","RIVER LEE COUNTRY PARK","PREMISES RELATED EXPENDITURE","WATER","2555","CASTLE WATER LIMITED",19/4/2021 00:00:00,"246968",679.97,"CA0625","CASTLE WATER LIMITED",1/4/2021 00:00:00,25/4/2021 00:00:00,"P01-2022"
,"LEE VALLEY MARINA SPRINGFIELD","PREMISES RELATED EXPENDITURE","CLEANING & DOMESTIC SUPPLIES","2666","P111479-SERVICE-To supply items as reuested",19/4/2021 00:00:00,"246690",285.66,"HY0043","HYGIENE SYSTEMS LTD",1/4/2021 00:00:00,25/4/2021 00:00:00,"P01-2022"
,"LEE VALLEY CAMPSITE","PREMISES RELATED EXPENDITURE","CLEANING & DOMESTIC SUPPLIES","2666","P111482-SERVICE-Sanitary",8/4/2021 00:00:00,"246230",82.09,"IN0012","INITIAL WASHROOM HYGIENE",1/4/2021 00:00:00,25/4/2021 00:00:00,"P01-2022"
,"LEE VALLEY CAMPSITE","PREMISES RELATED EXPENDITURE","CLEANING & DOMESTIC SUPPLIES","2666","P111494-SERVICE-Cleaning supplies",19/4/2021 00:00:00,"246721",496.82,"HY0043","HYGIENE SYSTEMS LTD",1/4/2021 00:00:00,25/4/2021 00:00:00,"P01-2022"
,"LEE VALLEY RIDING CENTRE","PREMISES RELATED EXPENDITURE","CLEANING & DOMESTIC SUPPLIES","2666","P107357-SERVICE-SUPPLIES AND SERVICES FOR TOILETS",1/4/2021 00:00:00,"245799",91.17,"PE0015","PHS GROUP PLC",1/4/2021 00:00:00,25/4/2021 00:00:00,"P01-2022"
,"LEE VALLEY WHITE WATER CENTRE","PREMISES RELATED EXPENDITURE","CLEANING & DOMESTIC SUPPLIES","2666","P111506-SERVICE-Cleaning supplies as per order",19/4/2021 00:00:00,"246711",356.09,"SU0595","SUMMIT HYGIENE LTD",1/4/2021 00:00:00,25/4/2021 00:00:00,"P01-2022"
"P&V","LEE VALLEY FARM HOLYFIELDHALL","TRANSPORT RELATED EXPENDITURE","TRANSPORT RUNNING EXPENSES","3333","P111469-SERVICE-Tractor Spares",19/4/2021 00:00:00,"246477",84.26,"RW0257","R. W. CRAWFORD AGRICULTURAL MACHINERY LTD",1/4/2021 00:00:00,25/4/2021 00:00:00,"P01-2022"
"P&V","LEE VALLEY FARM HOLYFIELDHALL","TRANSPORT RELATED EXPENDITURE","TRANSPORT RUNNING EXPENSES","3333","P111467-SERVICE-Puncture Repair",25/4/2021 00:00:00,"246779",61.5,"KB0006","KB TYRES LTD",1/4/2021 00:00:00,25/4/2021 00:00:00,"P01-2022"
"P&V","LEE VALLEY FARM HOLYFIELDHALL","TRANSPORT RELATED EXPENDITURE","TRANSPORT RUNNING EXPENSES","3333","P111465-SERVICE-Workshop Sundries",25/4/2021 00:00:00,"246927",17.28,"GR0022","GROUP COMPONENTS LIMITED",1/4/2021 00:00:00,25/4/2021 00:00:00,"P01-2022"
"P&V","LEE VALLEY FARM HOLYFIELDHALL","TRANSPORT RELATED EXPENDITURE","TRANSPORT RUNNING EXPENSES","3333","P111474-SERVICE-Tractor Spares",25/4/2021 00:00:00,"246992",320.03,"OL0059","OLIVER LANDPOWER LIMITED",1/4/2021 00:00:00,25/4/2021 00:00:00,"P01-2022"
"P&V","LEE VALLEY FARM HOLYFIELDHALL","TRANSPORT RELATED EXPENDITURE","TRANSPORT RUNNING EXPENSES","3333","P111627-SERVICE-Jetting Blocked Drain",25/4/2021 00:00:00,"247008",295,"TR0030","BIOMARSH ENVIRONMENTAL LIMITED",1/4/2021 00:00:00,25/4/2021 00:00:00,"P01-2022"
"P&V","LEE VALLEY FARM HOLYFIELDHALL","TRANSPORT RELATED EXPENDITURE","TRANSPORT RUNNING EXPENSES","3333","P111334-SERVICE-Cement Mixer",25/4/2021 00:00:00,"247203",338.9,"JE0011","SAINT-GOBAIN BUILDING DISTRIBUTION",1/4/2021 00:00:00,25/4/2021 00:00:00,"P01-2022"
"P&V","SOUTH AREA RANGERS","TRANSPORT RELATED EXPENDITURE","VEHICLE REPAIRS & MAINTENANCE","3338","P111792-SERVICE-205 80 x 12 Quad Bike Inner Tube",25/4/2021 00:00:00,"247185",14,"AD0016","ADVANCE TYRE SERVICE",1/4/2021 00:00:00,25/4/2021 00:00:00,"P01-2022"
"P&V","RIVER LEE COUNTRY PARK","TRANSPORT RELATED EXPENDITURE","VEHICLE REPAIRS & MAINTENANCE","3338","P111802-SERVICE-Service and Parts - N713 SAV",25/4/2021 00:00:00,"247212",497.26,"AJ0064","A.J.D. LANDROVERS",1/4/2021 00:00:00,25/4/2021 00:00:00,"P01-2022"
"P&V","RIVER LEE COUNTRY PARK","TRANSPORT RELATED EXPENDITURE","VEHICLE REPAIRS & MAINTENANCE","3338","P111675-SERVICE-MOT and Service - N713 SAV",25/4/2021 00:00:00,"247212",600,"AJ0064","A.J.D. LANDROVERS",1/4/2021 00:00:00,25/4/2021 00:00:00,"P01-2022"
"P&V","NORTH AREA RANGERS","TRANSPORT RELATED EXPENDITURE","TRAVELLING EXPENSES","3344","DARTFORD CROSSING",25/4/2021 00:00:00,"247064",5,"FI0001","DIRECTOR OF FINANCE - CASH",1/4/2021 00:00:00,25/4/2021 00:00:00,"P01-2022"
,"LEE VALLEY MARINA SPRINGFIELD","SUPPLIES AND SERVICES","EQUIPMENT & MATERIALS","4111","P111803-SERVICE-Oxygen size X Cylinder removal",25/4/2021 00:00:00,"246261",190.4,"BO0015","BOC LTD",1/4/2021 00:00:00,25/4/2021 00:00:00,"P01-2022"
,"LEE VALLEY MARINA SPRINGFIELD","SUPPLIES AND SERVICES","EQUIPMENT & MATERIALS","4111","P111803-SERVICE-Oxygen size X Cylinder removal",25/4/2021 00:00:00,"247199",-190.4,"BO0015","BOC LTD",1/4/2021 00:00:00,25/4/2021 00:00:00,"P01-2022"
,"STANSTEAD RECHARGEABLE WORKS","SUPPLIES AND SERVICES","EQUIPMENT & MATERIALS","4111","P111671-SERVICE-order ref A7660575903",25/4/2021 00:00:00,"247017",68.04,"SC0057","SCREWFIX DIRECT LTD",1/4/2021 00:00:00,25/4/2021 00:00:00,"P01-2022"
,"LEE VALLEY FARM HAYES HILL","SUPPLIES AND SERVICES","EQUIPMENT & MATERIALS","4111","P111763-SERVICE-UV light replacements",25/4/2021 00:00:00,"247168",172.59,"PE0253","PEREGRINE LIVEFOODS LTD",1/4/2021 00:00:00,25/4/2021 00:00:00,"P01-2022"
,"LVPF HAYES HILL SHOP/CATERING","SUPPLIES AND SERVICES","EQUIPMENT & MATERIALS","4111","P111404-SERVICE-Fridge repair",12/4/2021 00:00:00,"246587",315,"MA0417","MARSTAN FACILITIES LTD",1/4/2021 00:00:00,25/4/2021 00:00:00,"P01-2022"
,"LEE VALLEY CAMPSITE","SUPPLIES AND SERVICES","EQUIPMENT & MATERIALS","4111","P111696-SERVICE-weed control underdecking",25/4/2021 00:00:00,"246700",30.88,"BQ0164","TRADE UK ACCOUNT",1/4/2021 00:00:00,25/4/2021 00:00:00,"P01-2022"
,"LEE VALLEY CAMPSITE","SUPPLIES AND SERVICES","EQUIPMENT & MATERIALS","4111","P111698-SERVICE-topsoil and dec stone",25/4/2021 00:00:00,"246763",37.92,"BQ0164","TRADE UK ACCOUNT",1/4/2021 00:00:00,25/4/2021 00:00:00,"P01-2022"
,"LEE VALLEY CARAVAN PARK","SUPPLIES AND SERVICES","EQUIPMENT & MATERIALS","4111","P111253-SERVICE-Paint draincover carpet protect",25/4/2021 00:00:00,"245590",-16.66,"SC0057","SCREWFIX DIRECT LTD",1/4/2021 00:00:00,25/4/2021 00:00:00,"P01-2022"
,"LEE VALLEY CARAVAN PARK","SUPPLIES AND SERVICES","EQUIPMENT & MATERIALS","4111","P111753-SERVICE-Capital fridge services",25/4/2021 00:00:00,"246999",117.5,"CA0096","CAPITAL REFRIGERATION SERVICES LIMITED",1/4/2021 00:00:00,25/4/2021 00:00:00,"P01-2022"
,"LEE VALLEY CARAVAN PARK","SUPPLIES AND SERVICES","EQUIPMENT & MATERIALS","4111","P109113-SERVICE-Electric testing done on full site",25/4/2021 00:00:00,"247038",265,"BR0018","BRADSHAW ELECTRICAL LIMITED",1/4/2021 00:00:00,25/4/2021 00:00:00,"P01-2022"
,"LEE VALLEY CARAVAN PARK","SUPPLIES AND SERVICES","EQUIPMENT & MATERIALS","4111","P111765-SERVICE-Capital Fridge Ltd",25/4/2021 00:00:00,"247056",598.25,"CA0096","CAPITAL REFRIGERATION SERVICES LIMITED",1/4/2021 00:00:00,25/4/2021 00:00:00,"P01-2022"
"P&V","MYDDELTON HOUSE GARDENS","SUPPLIES AND SERVICES","EQUIPMENT & MATERIALS","4111","P111565-SERVICE-Fine Horse Manure",25/4/2021 00:00:00,"247026",333.36,"TH0051","THOMPSONS OF CREWS HILL LTD",1/4/2021 00:00:00,25/4/2021 00:00:00,"P01-2022"
"P&V","MYDDELTON HOUSE GARDENS","SUPPLIES AND SERVICES","EQUIPMENT & MATERIALS","4111","P111565-SERVICE-delivery charge",25/4/2021 00:00:00,"247026",4.96,"TH0051","THOMPSONS OF CREWS HILL LTD",1/4/2021 00:00:00,25/4/2021 00:00:00,"P01-2022"
"P&V","MYDDELTON HOUSE GARDENS","SUPPLIES AND SERVICES","EQUIPMENT & MATERIALS","4111","P111565-SERVICE-4 x bulk bags of play pine bark",25/4/2021 00:00:00,"247026",266.68,"TH0051","THOMPSONS OF CREWS HILL LTD",1/4/2021 00:00:00,25/4/2021 00:00:00,"P01-2022"
"P&V","MYDDELTON HOUSE GARDENS","SUPPLIES AND SERVICES","EQUIPMENT & MATERIALS","4111","P111028-SERVICE-J. Arthur Bowers John Innes Compost no.3 Econ",25/4/2021 00:00:00,"247181",260.4,"FA0149","FARGRO LIMITED",1/4/2021 00:00:00,25/4/2021 00:00:00,"P01-2022"
"P&V","NORTH AREA RANGERS","SUPPLIES AND SERVICES","EQUIPMENT & MATERIALS","4111","TOOLS & EQUIP",25/4/2021 00:00:00,"247064",8.99,"FI0001","DIRECTOR OF FINANCE - CASH",1/4/2021 00:00:00,25/4/2021 00:00:00,"P01-2022"
"P&V","NORTH AREA RANGERS","SUPPLIES AND SERVICES","EQUIPMENT & MATERIALS","4111","TOOLS & EQUIP",25/4/2021 00:00:00,"247064",7.08,"FI0001","DIRECTOR OF FINANCE - CASH",1/4/2021 00:00:00,25/4/2021 00:00:00,"P01-2022"
"P&V","NORTH AREA RANGERS","SUPPLIES AND SERVICES","EQUIPMENT & MATERIALS","4111","TOOLS & EQUIP",25/4/2021 00:00:00,"247064",4.5,"FI0001","DIRECTOR OF FINANCE - CASH",1/4/2021 00:00:00,25/4/2021 00:00:00,"P01-2022"
"P&V","NORTH AREA RANGERS","SUPPLIES AND SERVICES","EQUIPMENT & MATERIALS","4111","P111817-SERVICE-1x Hammer Drill",25/4/2021 00:00:00,"247200",91.66,"JE0011","SAINT-GOBAIN BUILDING DISTRIBUTION",1/4/2021 00:00:00,25/4/2021 00:00:00,"P01-2022"
"P&V","NORTH AREA RANGERS","SUPPLIES AND SERVICES","EQUIPMENT & MATERIALS","4111","P111817-SERVICE-2x Builders Gloves PK 10",25/4/2021 00:00:00,"247200",24.9,"JE0011","SAINT-GOBAIN BUILDING DISTRIBUTION",1/4/2021 00:00:00,25/4/2021 00:00:00,"P01-2022"
"P&V","NORTH AREA RANGERS","SUPPLIES AND SERVICES","EQUIPMENT & MATERIALS","4111","P111817-SERVICE-2x Black PU Gloves",25/4/2021 00:00:00,"247200",2.58,"JE0011","SAINT-GOBAIN BUILDING DISTRIBUTION",1/4/2021 00:00:00,25/4/2021 00:00:00,"P01-2022"
"P&V","NORTH AREA RANGERS","SUPPLIES AND SERVICES","EQUIPMENT & MATERIALS","4111","P111817-SERVICE-200 x Mudgaurd Repair Washers",25/4/2021 00:00:00,"247200",44,"JE0011","SAINT-GOBAIN BUILDING DISTRIBUTION",1/4/2021 00:00:00,25/4/2021 00:00:00,"P01-2022"
"P&V","SOUTH AREA RANGERS","SUPPLIES AND SERVICES","EQUIPMENT & MATERIALS","4111","P111102-SERVICE-15x ASSA Barrels",25/4/2021 00:00:00,"246454",560.1,"LO0020","LOCK AND KEY SERVICES",1/4/2021 00:00:00,25/4/2021 00:00:00,"P01-2022"
"P&V","SOUTH AREA RANGERS","SUPPLIES AND SERVICES","EQUIPMENT & MATERIALS","4111","P111102-SERVICE-8x ASSA Body",25/4/2021 00:00:00,"246454",256.4,"LO0020","LOCK AND KEY SERVICES",1/4/2021 00:00:00,25/4/2021 00:00:00,"P01-2022"
"P&V","SOUTH AREA RANGERS","SUPPLIES AND SERVICES","EQUIPMENT & MATERIALS","4111","P111102-SERVICE-Delivery Locks",25/4/2021 00:00:00,"246454",10,"LO0020","LOCK AND KEY SERVICES",1/4/2021 00:00:00,25/4/2021 00:00:00,"P01-2022"
"P&V","SOUTH AREA RANGERS","SUPPLIES AND SERVICES","EQUIPMENT & MATERIALS","4111","P111662-SERVICE-ASSA Barrels",25/4/2021 00:00:00,"246454",234.96,"LO0020","LOCK AND KEY SERVICES",1/4/2021 00:00:00,25/4/2021 00:00:00,"P01-2022"
"P&V","SOUTH AREA RANGERS","SUPPLIES AND SERVICES","EQUIPMENT & MATERIALS","4111","P111512-SERVICE-3x Tarmac Postcrete",12/4/2021 00:00:00,"246580",17.48,"SC0057","SCREWFIX DIRECT LTD",1/4/2021 00:00:00,25/4/2021 00:00:00,"P01-2022"
"P&V","SOUTH AREA RANGERS","SUPPLIES AND SERVICES","EQUIPMENT & MATERIALS","4111","P111566-SERVICE-1x Stanley Chalk Line Set 43718",19/4/2021 00:00:00,"246764",11.66,"SC0057","SCREWFIX DIRECT LTD",1/4/2021 00:00:00,25/4/2021 00:00:00,"P01-2022"
"P&V","SOUTH AREA RANGERS","SUPPLIES AND SERVICES","EQUIPMENT & MATERIALS","4111","P111566-SERVICE-1x Blackfriar Anti - Climb Paint 5810P",19/4/2021 00:00:00,"246764",9.99,"SC0057","SCREWFIX DIRECT LTD",1/4/2021 00:00:00,25/4/2021 00:00:00,"P01-2022"
"P&V","SOUTH AREA RANGERS","SUPPLIES AND SERVICES","EQUIPMENT & MATERIALS","4111","P111566-SERVICE-10x Squire die-cast Steel Padlocks 8076J",19/4/2021 00:00:00,"246764",131.08,"SC0057","SCREWFIX DIRECT LTD",1/4/2021 00:00:00,25/4/2021 00:00:00,"P01-2022"
"P&V","SOUTH AREA RANGERS","SUPPLIES AND SERVICES","EQUIPMENT & MATERIALS","4111","P111566-SERVICE-1x Stanley Chalk Line Set 43718",19/4/2021 00:00:00,"246765",11.66,"SC0057","SCREWFIX DIRECT LTD",1/4/2021 00:00:00,25/4/2021 00:00:00,"P01-2022"
"P&V","SOUTH AREA RANGERS","SUPPLIES AND SERVICES","EQUIPMENT & MATERIALS","4111","P111566-SERVICE-1x Blackfriar Anti - Climb Paint 5810P",19/4/2021 00:00:00,"246765",9.99,"SC0057","SCREWFIX DIRECT LTD",1/4/2021 00:00:00,25/4/2021 00:00:00,"P01-2022"
"P&V","SOUTH AREA RANGERS","SUPPLIES AND SERVICES","EQUIPMENT & MATERIALS","4111","P111566-SERVICE-10x Squire die-cast Steel Padlocks 8076J",19/4/2021 00:00:00,"246765",131.08,"SC0057","SCREWFIX DIRECT LTD",1/4/2021 00:00:00,25/4/2021 00:00:00,"P01-2022"
"P&V","SOUTH AREA RANGERS","SUPPLIES AND SERVICES","EQUIPMENT & MATERIALS","4111","P111566-SERVICE-1x Blackfriar Anti - Climb Paint 5810P",19/4/2021 00:00:00,"246766",-9.99,"SC0057","SCREWFIX DIRECT LTD",1/4/2021 00:00:00,25/4/2021 00:00:00,"P01-2022"
"P&V","SOUTH AREA RANGERS","SUPPLIES AND SERVICES","EQUIPMENT & MATERIALS","4111","P111566-SERVICE-1x Stanley Chalk Line Set 43718",19/4/2021 00:00:00,"246766",-11.66,"SC0057","SCREWFIX DIRECT LTD",1/4/2021 00:00:00,25/4/2021 00:00:00,"P01-2022"
"P&V","SOUTH AREA RANGERS","SUPPLIES AND SERVICES","EQUIPMENT & MATERIALS","4111","P111566-SERVICE-10x Squire die-cast Steel Padlocks 8076J",19/4/2021 00:00:00,"246766",-131.08,"SC0057","SCREWFIX DIRECT LTD",1/4/2021 00:00:00,25/4/2021 00:00:00,"P01-2022"
"P&V","SOUTH AREA RANGERS","SUPPLIES AND SERVICES","EQUIPMENT & MATERIALS","4111","P111657-SERVICE-1x Button Head Socket Screws M5 12mm (50pk)",20/4/2021 00:00:00,"246942",2.41,"SC0057","SCREWFIX DIRECT LTD",1/4/2021 00:00:00,25/4/2021 00:00:00,"P01-2022"
"P&V","SOUTH AREA RANGERS","SUPPLIES AND SERVICES","EQUIPMENT & MATERIALS","4111","P111657-SERVICE-1x Angle Braces 19x19x1.2 (50pk)",20/4/2021 00:00:00,"246942",2.08,"SC0057","SCREWFIX DIRECT LTD",1/4/2021 00:00:00,25/4/2021 00:00:00,"P01-2022"
"P&V","SOUTH AREA RANGERS","SUPPLIES AND SERVICES","EQUIPMENT & MATERIALS","4111","P111791-SERVICE-Universal cutting disk MET cut 2mm",25/4/2021 00:00:00,"247174",4.79,"BQ0164","TRADE UK ACCOUNT",1/4/2021 00:00:00,25/4/2021 00:00:00,"P01-2022"
"P&V","SOUTH AREA RANGERS","SUPPLIES AND SERVICES","EQUIPMENT & MATERIALS","4111","P111791-SERVICE-Universal cutting disk INOX cut 2mm",25/4/2021 00:00:00,"247174",8,"BQ0164","TRADE UK ACCOUNT",1/4/2021 00:00:00,25/4/2021 00:00:00,"P01-2022"
,"LV ICE CENTRE CATERING","SUPPLIES AND SERVICES","EQUIPMENT & MATERIALS","4111","P111513-SERVICE-Coke Machine",13/4/2021 00:00:00,"246432",33.33,"CO0045","COCA COLA EUROPEAN PARTNERS GREAT BRITAIN LTD",1/4/2021 00:00:00,25/4/2021 00:00:00,"P01-2022"
,"LV LEISURE CENTRE CAMPSITE","SUPPLIES AND SERVICES","EQUIPMENT & MATERIALS","4111","P111720-SERVICE-no nails etc",20/4/2021 00:00:00,"246941",15.95,"BQ0164","TRADE UK ACCOUNT",1/4/2021 00:00:00,25/4/2021 00:00:00,"P01-2022"
,"LV LEISURE CENTRE GOLF COURSE","SUPPLIES AND SERVICES","EQUIPMENT & MATERIALS","4111","P111424-SERVICE-fuel pump",19/4/2021 00:00:00,"246448",219.38,"LE0279","REESINK TURFCARE UK LIMITED",1/4/2021 00:00:00,25/4/2021 00:00:00,"P01-2022"
,"LV LEISURE CENTRE GOLF COURSE","SUPPLIES AND SERVICES","EQUIPMENT & MATERIALS","4111","P111599-SERVICE-wheel support and bearing",19/4/2021 00:00:00,"246735",221.76,"LE0279","REESINK TURFCARE UK LIMITED",1/4/2021 00:00:00,25/4/2021 00:00:00,"P01-2022"
,"LEE VALLEY ATHLETICS CENTRE","SUPPLIES AND SERVICES","EQUIPMENT & MATERIALS","4111","P109485-SERVICE-Medicine Balls and Dumb bells",12/4/2021 00:00:00,"246450",585.62,"JO0158","JORDAN FITNESS LTD",1/4/2021 00:00:00,25/4/2021 00:00:00,"P01-2022"
,"LEE VALLEY WHITE WATER CENTRE","SUPPLIES AND SERVICES","EQUIPMENT & MATERIALS","4111","P111570-SERVICE-Mini fridge, coat hooks, velcro",19/4/2021 00:00:00,"246716",73.33,"AM0406","AMAZON PAYMENTS UK LIMITED",1/4/2021 00:00:00,25/4/2021 00:00:00,"P01-2022"
,"LEE VALLEY WHITE WATER CENTRE","SUPPLIES AND SERVICES","EQUIPMENT & MATERIALS","4111","P111556-SERVICE-2 x barriers and tape",19/4/2021 00:00:00,"246720",4.12,"AM0406","AMAZON PAYMENTS UK LIMITED",1/4/2021 00:00:00,25/4/2021 00:00:00,"P01-2022"
,"LEE VALLEY WHITE WATER CENTRE","SUPPLIES AND SERVICES","EQUIPMENT & MATERIALS","4111","P111634-SERVICE-Various mats and equip ordered by MR",19/4/2021 00:00:00,"246767",37.05,"AM0406","AMAZON PAYMENTS UK LIMITED",1/4/2021 00:00:00,25/4/2021 00:00:00,"P01-2022"
,"LEE VALLEY WHITE WATER CENTRE","SUPPLIES AND SERVICES","EQUIPMENT & MATERIALS","4111","P111634-SERVICE-Various mats and equip ordered by MR",19/4/2021 00:00:00,"246768",11.8,"AM0406","AMAZON PAYMENTS UK LIMITED",1/4/2021 00:00:00,25/4/2021 00:00:00,"P01-2022"
,"LEE VALLEY WHITE WATER CENTRE","SUPPLIES AND SERVICES","EQUIPMENT & MATERIALS","4111","P111634-SERVICE-Various mats and equip ordered by MR",19/4/2021 00:00:00,"246769",10.72,"AM0406","AMAZON PAYMENTS UK LIMITED",1/4/2021 00:00:00,25/4/2021 00:00:00,"P01-2022"
,"LEE VALLEY WHITE WATER CENTRE","SUPPLIES AND SERVICES","EQUIPMENT & MATERIALS","4111","P111556-SERVICE-2 x barriers and tape",19/4/2021 00:00:00,"246770",14.13,"AM0406","AMAZON PAYMENTS UK LIMITED",1/4/2021 00:00:00,25/4/2021 00:00:00,"P01-2022"
,"LEE VALLEY WHITE WATER CENTRE","SUPPLIES AND SERVICES","EQUIPMENT & MATERIALS","4111","P111570-SERVICE-Mini fridge, coat hooks, velcro",19/4/2021 00:00:00,"246771",18.73,"AM0406","AMAZON PAYMENTS UK LIMITED",1/4/2021 00:00:00,25/4/2021 00:00:00,"P01-2022"
,"LEE VALLEY WHITE WATER CENTRE","SUPPLIES AND SERVICES","EQUIPMENT & MATERIALS","4111","P111634-SERVICE-Various mats and equip ordered by MR",19/4/2021 00:00:00,"246778",24.93,"AM0406","AMAZON PAYMENTS UK LIMITED",1/4/2021 00:00:00,25/4/2021 00:00:00,"P01-2022"
,"LEE VALLEY WHITE WATER CENTRE","SUPPLIES AND SERVICES","EQUIPMENT & MATERIALS","4111","P111634-SERVICE-Various mats and equip ordered by MR",19/4/2021 00:00:00,"246913",37.38,"AM0406","AMAZON PAYMENTS UK LIMITED",1/4/2021 00:00:00,25/4/2021 00:00:00,"P01-2022"
,"LEE VALLEY WHITE WATER CENTRE","SUPPLIES AND SERVICES","EQUIPMENT & MATERIALS","4111","P111634-SERVICE-Various mats and equip ordered by MR",19/4/2021 00:00:00,"246914",8.74,"AM0406","AMAZON PAYMENTS UK LIMITED",1/4/2021 00:00:00,25/4/2021 00:00:00,"P01-2022"
,"LEE VALLEY WHITE WATER CENTRE","SUPPLIES AND SERVICES","EQUIPMENT & MATERIALS","4111","P111634-SERVICE-Various mats and equip ordered by MR",25/4/2021 00:00:00,"246986",37.38,"AM0406","AMAZON PAYMENTS UK LIMITED",1/4/2021 00:00:00,25/4/2021 00:00:00,"P01-2022"
,"LEE VALLEY WHITE WATER CENTRE","SUPPLIES AND SERVICES","EQUIPMENT & MATERIALS","4111","P111634-SERVICE-Various mats and equip ordered by MR",25/4/2021 00:00:00,"246987",8.74,"AM0406","AMAZON PAYMENTS UK LIMITED",1/4/2021 00:00:00,25/4/2021 00:00:00,"P01-2022"
,"LEE VALLEY WHITE WATER CENTRE","SUPPLIES AND SERVICES","EQUIPMENT & MATERIALS","4111","P111684-SERVICE-Sun cream",25/4/2021 00:00:00,"247014",120.05,"AM0406","AMAZON PAYMENTS UK LIMITED",1/4/2021 00:00:00,25/4/2021 00:00:00,"P01-2022"
,"LEE VALLEY WHITE WATER CENTRE","SUPPLIES AND SERVICES","EQUIPMENT & MATERIALS","4111","P111683-SERVICE-Wooden forks",25/4/2021 00:00:00,"247015",2.8,"AM0406","AMAZON PAYMENTS UK LIMITED",1/4/2021 00:00:00,25/4/2021 00:00:00,"P01-2022"
"CEO","RESIDENTIAL ACCOMMODATION","SUPPLIES AND SERVICES","EQUIPMENT MAINTENANCE","4112","P111704-SERVICE-Holyfield bio disc repair",25/4/2021 00:00:00,"246109",430.03,"KI0080","KINGSPAN WATER & ENERGY LIMITED",1/4/2021 00:00:00,25/4/2021 00:00:00,"P01-2022"
,"LEE VALLEY CAMPSITE","SUPPLIES AND SERVICES","EQUIPMENT MAINTENANCE","4112","P111507-SERVICE-washing machine",19/4/2021 00:00:00,"246693",169,"AL0434","ALLSOP & FRANCIS",1/4/2021 00:00:00,25/4/2021 00:00:00,"P01-2022"
,"LEE VALLEY CAMPSITE","SUPPLIES AND SERVICES","EQUIPMENT MAINTENANCE","4112","P111519-SERVICE-Cushman repairs",19/4/2021 00:00:00,"246954",877,"GE0440","GTEC'S",1/4/2021 00:00:00,25/4/2021 00:00:00,"P01-2022"
,"LEE VALLEY VELOPARK CATERING","SUPPLIES AND SERVICES","EQUIPMENT MAINTENANCE","4112","P111323-SERVICE-Mgt Charges Apr - Jun 2021",1/4/2021 00:00:00,"245737",363.99,"TA0272","TASTEBUDS VENDING LI MITED",1/4/2021 00:00:00,25/4/2021 00:00:00,"P01-2022"
,"LV HOCKEY AND TENNIS CATERING","SUPPLIES AND SERVICES","EQUIPMENT MAINTENANCE","4112","P111322-SERVICE-Mgt Charges Apr - Jun 2021",1/4/2021 00:00:00,"245738",363.99,"TA0272","TASTEBUDS VENDING LI MITED",1/4/2021 00:00:00,25/4/2021 00:00:00,"P01-2022"
,"LEE VALLEY WHITE WATER CENTRE","SUPPLIES AND SERVICES","EQUIPMENT MAINTENANCE","4112","P111555-SERVICE-Drysuit repair",19/4/2021 00:00:00,"246710",179.57,"HA0169","HAMMOND DRYSUITS LTD",1/4/2021 00:00:00,25/4/2021 00:00:00,"P01-2022"
"R&B","INFORMATION TECHNOLOGY","SUPPLIES AND SERVICES","IT CORE SYSTEMS","4113","P111554-SERVICE-Managed Fee 14-4-21 - 13-5-21",12/4/2021 00:00:00,"244838",1246.24,"CE0021","ADVANCED BUSINESS SOLUTIONS",1/4/2021 00:00:00,25/4/2021 00:00:00,"P01-2022"
"R&B","INFORMATION TECHNOLOGY","SUPPLIES AND SERVICES","IT CORE SYSTEMS","4113","P111554-SERVICE-Managed Fee 14-5-21 - 13-6-21",12/4/2021 00:00:00,"245596",1246.24,"CE0021","ADVANCED BUSINESS SOLUTIONS",1/4/2021 00:00:00,25/4/2021 00:00:00,"P01-2022"
"R&B","INFORMATION TECHNOLOGY","SUPPLIES AND SERVICES","IT CORE SYSTEMS","4113","P111265-SERVICE-Vine Composica Authority Tool Access",1/4/2021 00:00:00,"245918",900,"CR0526","CREATIVE LEARNING SYSTEMS",1/4/2021 00:00:00,25/4/2021 00:00:00,"P01-2022"
"R&B","INFORMATION TECHNOLOGY","SUPPLIES AND SERVICES","IT CORE SYSTEMS","4113","P111265-SERVICE-User Accounts",1/4/2021 00:00:00,"245918",1478.4,"CR0526","CREATIVE LEARNING SYSTEMS",1/4/2021 00:00:00,25/4/2021 00:00:00,"P01-2022"
"R&B","INFORMATION TECHNOLOGY","SUPPLIES AND SERVICES","IT CORE SYSTEMS","4113","P111265-SERVICE-CORE LMS System 7Mar21-6Mar 22",1/4/2021 00:00:00,"245918",4250,"CR0526","CREATIVE LEARNING SYSTEMS",1/4/2021 00:00:00,25/4/2021 00:00:00,"P01-2022"
"R&B","INFORMATION TECHNOLOGY","SUPPLIES AND SERVICES","IT CORE SYSTEMS","4113","P111362-SERVICE-Hosted Payroll April 21",6/4/2021 00:00:00,"246128",542.51,"PA0453","PAYROLL BUSINESS SOLUTIONS LTD",1/4/2021 00:00:00,25/4/2021 00:00:00,"P01-2022"
"R&B","INFORMATION TECHNOLOGY","SUPPLIES AND SERVICES","IT CORE SYSTEMS","4113","P111490-SERVICE-Final 3 month of Prime",12/4/2021 00:00:00,"246455",875,"AC0317","ACCLAIM SAFETY SYSTEMS LIMITED",1/4/2021 00:00:00,25/4/2021 00:00:00,"P01-2022"
"R&B","INFORMATION TECHNOLOGY","SUPPLIES AND SERVICES","IT CORE SYSTEMS","4113","P111563-SERVICE-Managed Fee 14Jun-13Jul21",19/4/2021 00:00:00,"246704",1246.24,"CE0021","ADVANCED BUSINESS SOLUTIONS",1/4/2021 00:00:00,25/4/2021 00:00:00,"P01-2022"
"R&B","INFORMATION TECHNOLOGY","SUPPLIES AND SERVICES","IT CORE SYSTEMS","4113","P111851-SERVICE-Monthly fees 15/4/21 - 15/5/21",25/4/2021 00:00:00,"247001",351,"CO0440","VERIFONE SERVICES UK & IRELAND LTD",1/4/2021 00:00:00,25/4/2021 00:00:00,"P01-2022"
"R&B","INFORMATION TECHNOLOGY","SUPPLIES AND SERVICES","IT CORE SYSTEMS","4113","P111362-SERVICE-Hosted Payroll May 21- March 22",25/4/2021 00:00:00,"247049",542.51,"PA0453","PAYROLL BUSINESS SOLUTIONS LTD",1/4/2021 00:00:00,25/4/2021 00:00:00,"P01-2022"
,"LSC INFORMATION TECHNOLOGY","SUPPLIES AND SERVICES","IT CORE SYSTEMS","4113","P111282-SERVICE-Access People HOS Software Apr-Jun 21",6/4/2021 00:00:00,"245365",1343.7,"SE0251","ACCESS UK LTD (FRMLY SELIMA)",1/4/2021 00:00:00,25/4/2021 00:00:00,"P01-2022"
"R&B","INFORMATION TECHNOLOGY","SUPPLIES AND SERVICES","IT NETWORK & TELECOMS COSTS","4114","P107345-SERVICE-.Monthly Service & Calls 20/21",12/4/2021 00:00:00,"246408",145.22,"FR0131","VOICEFLEX LTD",1/4/2021 00:00:00,25/4/2021 00:00:00,"P01-2022"
"R&B","INFORMATION TECHNOLOGY","SUPPLIES AND SERVICES","IT NETWORK & TELECOMS COSTS","4114","P107345-SERVICE-.Monthly Service & Calls 20/21",12/4/2021 00:00:00,"246409",-145.22,"FR0131","VOICEFLEX LTD",1/4/2021 00:00:00,25/4/2021 00:00:00,"P01-2022"
"R&B","INFORMATION TECHNOLOGY","SUPPLIES AND SERVICES","IT NETWORK & TELECOMS COSTS","4114","P107345-SERVICE-.Monthly Service & Calls 20/21",12/4/2021 00:00:00,"246410",145.22,"FR0131","VOICEFLEX LTD",1/4/2021 00:00:00,25/4/2021 00:00:00,"P01-2022"
,"LEE VALLEY VELOPARK","SUPPLIES AND SERVICES","EQUIPMENT HIRE","4115","P111321-SERVICE-Sanitary Equipment Hire 21/22",1/4/2021 00:00:00,"245790",285.27,"PE0015","PHS GROUP PLC",1/4/2021 00:00:00,25/4/2021 00:00:00,"P01-2022"
,"LEE VALLEY VELOPARK","SUPPLIES AND SERVICES","EQUIPMENT HIRE","4115","P111614-SERVICE-EEquipment Hire May 2021",19/4/2021 00:00:00,"246269",285.27,"PE0015","PHS GROUP PLC",1/4/2021 00:00:00,25/4/2021 00:00:00,"P01-2022"
,"LV HOCKEY AND TENNIS CENTRE","SUPPLIES AND SERVICES","EQUIPMENT HIRE","4115","P111318-SERVICE-Sanitary Equipment Hire April",1/4/2021 00:00:00,"245786",364.82,"PE0015","PHS GROUP PLC",1/4/2021 00:00:00,25/4/2021 00:00:00,"P01-2022"
,"LV HOCKEY AND TENNIS CENTRE","SUPPLIES AND SERVICES","EQUIPMENT HIRE","4115","P111533-SERVICE-Equipment Hire May 2021",19/4/2021 00:00:00,"246268",364.82,"PE0015","PHS GROUP PLC",1/4/2021 00:00:00,25/4/2021 00:00:00,"P01-2022"
"P&V","MYDDELTON HOUSE","SUPPLIES AND SERVICES","IT HARDWARE & SOFTWARE COSTS","4116","ZEN INTERNET LTD",12/4/2021 00:00:00,"246202",29.5,"ZE0007","ZEN INTERNET LTD",1/4/2021 00:00:00,25/4/2021 00:00:00,"P01-2022"
"P&V","MYDDELTON HOUSE","SUPPLIES AND SERVICES","IT HARDWARE & SOFTWARE COSTS","4116","ZEN INTERNET LTD",19/4/2021 00:00:00,"246706",42,"ZE0007","ZEN INTERNET LTD",1/4/2021 00:00:00,25/4/2021 00:00:00,"P01-2022"
"R&B","INFORMATION TECHNOLOGY","SUPPLIES AND SERVICES","IT HARDWARE & SOFTWARE COSTS","4116","P111690-SERVICE-2 x APC RBC18 replacement battery cartridge",19/4/2021 00:00:00,"246897",214.44,"CO0499","COMMS EXPRESS",1/4/2021 00:00:00,25/4/2021 00:00:00,"P01-2022"
,"LEE VALLEY MARINA SPRINGFIELD","SUPPLIES AND SERVICES","IT HARDWARE & SOFTWARE COSTS","4116","ZEN INTERNET LTD",19/4/2021 00:00:00,"246705",38,"ZE0007","ZEN INTERNET LTD",1/4/2021 00:00:00,25/4/2021 00:00:00,"P01-2022"
,"LEE VALLEY MARINA STANSTEAD","SUPPLIES AND SERVICES","IT HARDWARE & SOFTWARE COSTS","4116","ZEN INTERNET LTD",21/4/2021 00:00:00,"246727",31.32,"ZE0007","ZEN INTERNET LTD",1/4/2021 00:00:00,25/4/2021 00:00:00,"P01-2022"
,"LEE VALLEY RIDING CENTRE","SUPPLIES AND SERVICES","IT HARDWARE & SOFTWARE COSTS","4116","ZEN INTERNET LTD",12/4/2021 00:00:00,"246440",31.32,"ZE0007","ZEN INTERNET LTD",1/4/2021 00:00:00,25/4/2021 00:00:00,"P01-2022"
,"LEE VALLEY ICE CENTRE","SUPPLIES AND SERVICES","IT HARDWARE & SOFTWARE COSTS","4116","ZEN INTERNET LTD",25/4/2021 00:00:00,"247018",42,"ZE0007","ZEN INTERNET LTD",1/4/2021 00:00:00,25/4/2021 00:00:00,"P01-2022"
,"LEE VALLEY WHITE WATER CENTRE","SUPPLIES AND SERVICES","IT HARDWARE & SOFTWARE COSTS","4116","ZEN INTERNET LTD",25/4/2021 00:00:00,"247036",13.49,"ZE0007","ZEN INTERNET LTD",1/4/2021 00:00:00,25/4/2021 00:00:00,"P01-2022"
,"LEE VALLEY WHITE WATER CENTRE","SUPPLIES AND SERVICES","IT HARDWARE & SOFTWARE COSTS","4116","ZEN INTERNET LTD",25/4/2021 00:00:00,"247037",17.83,"ZE0007","ZEN INTERNET LTD",1/4/2021 00:00:00,25/4/2021 00:00:00,"P01-2022"
,"LEE VALLEY ATHLETICS CENTRE","SUPPLIES AND SERVICES","VENDING AGREEMENTS","4117","P111546-SERVICE-LVAC INV 9296336285 1.4.21",12/4/2021 00:00:00,"246470",544.29,"BR0019","BRAKE BROTHERS LIMITED",1/4/2021 00:00:00,25/4/2021 00:00:00,"P01-2022"
"R&B","INFORMATION TECHNOLOGY","SUPPLIES AND SERVICES","IT MAINTENANCE AGREEMENTS","4119","P111691-SERVICE-Annual Data Network Support 21-22",19/4/2021 00:00:00,"246748",5700,"IQ0022","IQUAL",1/4/2021 00:00:00,25/4/2021 00:00:00,"P01-2022"
"R&B","INFORMATION TECHNOLOGY","SUPPLIES AND SERVICES","IT MAINTENANCE AGREEMENTS","4119","P111630-SERVICE-Annual Telephone system maintenance",25/4/2021 00:00:00,"246926",8291.01,"IQ0022","IQUAL",1/4/2021 00:00:00,25/4/2021 00:00:00,"P01-2022"
,"LEE VALLEY MARINA SPRINGFIELD","SUPPLIES AND SERVICES","IT MAINTENANCE AGREEMENTS","4119","P111572-SERVICE-Support & Data April 21",19/4/2021 00:00:00,"246688",72.44,"CY0653","CYBERTILL",1/4/2021 00:00:00,25/4/2021 00:00:00,"P01-2022"
,"LEE VALLEY MARINA STANSTEAD","SUPPLIES AND SERVICES","IT MAINTENANCE AGREEMENTS","4119","P111572-SERVICE-Support & Data April 21",19/4/2021 00:00:00,"246688",72.44,"CY0653","CYBERTILL",1/4/2021 00:00:00,25/4/2021 00:00:00,"P01-2022"
,"LEE VALLEY CAMPSITE","SUPPLIES AND SERVICES","IT MAINTENANCE AGREEMENTS","4119","P111280-SERVICE-Monthly Subscription April 21",6/4/2021 00:00:00,"245777",145.5,"NE0218","NETGUIDES LIMITED",1/4/2021 00:00:00,25/4/2021 00:00:00,"P01-2022"
,"LEE VALLEY CAMPSITE","SUPPLIES AND SERVICES","IT MAINTENANCE AGREEMENTS","4119","P111852-SERVICE-Monthlt Subscription may 21 - Oct 21 Sewardst",25/4/2021 00:00:00,"247024",145.5,"NE0218","NETGUIDES LIMITED",1/4/2021 00:00:00,25/4/2021 00:00:00,"P01-2022"
,"LEE VALLEY CARAVAN PARK","SUPPLIES AND SERVICES","IT MAINTENANCE AGREEMENTS","4119","P111280-SERVICE-Monthly Subscriptions April 21",6/4/2021 00:00:00,"245777",145.5,"NE0218","NETGUIDES LIMITED",1/4/2021 00:00:00,25/4/2021 00:00:00,"P01-2022"
,"LEE VALLEY CARAVAN PARK","SUPPLIES AND SERVICES","IT MAINTENANCE AGREEMENTS","4119","P111852-SERVICE-Monthly Subscription May 21 - Oct 21 DW",25/4/2021 00:00:00,"247024",145.5,"NE0218","NETGUIDES LIMITED",1/4/2021 00:00:00,25/4/2021 00:00:00,"P01-2022"
"P&V","ALMOST WILD CAMPSITE","SUPPLIES AND SERVICES","IT MAINTENANCE AGREEMENTS","4119","P111280-SERVICE-Monthly Subscription April 21",6/4/2021 00:00:00,"245777",145.5,"NE0218","NETGUIDES LIMITED",1/4/2021 00:00:00,25/4/2021 00:00:00,"P01-2022"
"P&V","ALMOST WILD CAMPSITE","SUPPLIES AND SERVICES","IT MAINTENANCE AGREEMENTS","4119","P111852-SERVICE-Monthly Subscription May 21 - Oct 21 AWC",25/4/2021 00:00:00,"247024",145.5,"NE0218","NETGUIDES LIMITED",1/4/2021 00:00:00,25/4/2021 00:00:00,"P01-2022"
,"LV LEISURE CENTRE CAMPSITE","SUPPLIES AND SERVICES","IT MAINTENANCE AGREEMENTS","4119","P111280-SERVICE-Monthly Subscription April 21",6/4/2021 00:00:00,"245777",145.5,"NE0218","NETGUIDES LIMITED",1/4/2021 00:00:00,25/4/2021 00:00:00,"P01-2022"
,"LV LEISURE CENTRE CAMPSITE","SUPPLIES AND SERVICES","IT MAINTENANCE AGREEMENTS","4119","P111852-SERVICE-Monthly Subscription May 21 - Oct 21 Edmonton",25/4/2021 00:00:00,"247024",145.5,"NE0218","NETGUIDES LIMITED",1/4/2021 00:00:00,25/4/2021 00:00:00,"P01-2022"
"P&V","EAST INDIA DOCK AND BOW CREEK","SUPPLIES AND SERVICES","MATERIALS (COUNTERS)","4123","P111375-SERVICE-Visitor Counter Maintenance  1/4/20-31/3/21",25/4/2021 00:00:00,"246233",1400,"HE0418","HEALTHMATIC LTD",1/4/2021 00:00:00,25/4/2021 00:00:00,"P01-2022"
"P&V","EAST INDIA DOCK AND BOW CREEK","SUPPLIES AND SERVICES","MATERIALS (COUNTERS)","4123","P111375-SERVICE-Visitor Counter Maintenance  1/4/20-31/3/21",25/4/2021 00:00:00,"247177",-1400,"HE0418","HEALTHMATIC LTD",1/4/2021 00:00:00,25/4/2021 00:00:00,"P01-2022"
"P&V","NORTH AREA RANGERS","SUPPLIES AND SERVICES","MATERIALS (COUNTERS)","4123","P111375-SERVICE-Visitor Counter Maintenance 1/4/20-31/3/21",25/4/2021 00:00:00,"246233",3300,"HE0418","HEALTHMATIC LTD",1/4/2021 00:00:00,25/4/2021 00:00:00,"P01-2022"
"P&V","NORTH AREA RANGERS","SUPPLIES AND SERVICES","MATERIALS (COUNTERS)","4123","P111375-SERVICE-Visitor Counter Maintenance 1/4/20-31/3/21",25/4/2021 00:00:00,"247177",-3300,"HE0418","HEALTHMATIC LTD",1/4/2021 00:00:00,25/4/2021 00:00:00,"P01-2022"
"P&V","SOUTH AREA RANGERS","SUPPLIES AND SERVICES","MATERIALS (COUNTERS)","4123","P111375-SERVICE-Visitor Counter Maintenance  1/4/20-31/3/21",25/4/2021 00:00:00,"246233",4350,"HE0418","HEALTHMATIC LTD",1/4/2021 00:00:00,25/4/2021 00:00:00,"P01-2022"
"P&V","SOUTH AREA RANGERS","SUPPLIES AND SERVICES","MATERIALS (COUNTERS)","4123","P111375-SERVICE-Visitor Counter Maintenance  1/4/20-31/3/21",25/4/2021 00:00:00,"247177",-4350,"HE0418","HEALTHMATIC LTD",1/4/2021 00:00:00,25/4/2021 00:00:00,"P01-2022"
"P&V","ABBEY GARDENS","SUPPLIES AND SERVICES","MATERIALS (COUNTERS)","4123","P111375-SERVICE-Visitor Counter Maintenance  1/4/20-31/3/21",25/4/2021 00:00:00,"246233",1000,"HE0418","HEALTHMATIC LTD",1/4/2021 00:00:00,25/4/2021 00:00:00,"P01-2022"
"P&V","ABBEY GARDENS","SUPPLIES AND SERVICES","MATERIALS (COUNTERS)","4123","P111375-SERVICE-Visitor Counter Maintenance  1/4/20-31/3/21",25/4/2021 00:00:00,"247177",-1000,"HE0418","HEALTHMATIC LTD",1/4/2021 00:00:00,25/4/2021 00:00:00,"P01-2022"
"P&V","GUNPOWDER PARK","SUPPLIES AND SERVICES","MATERIALS (COUNTERS)","4123","P111375-SERVICE-Visitor Counter Maintenance  1/4/20-31/3/21",25/4/2021 00:00:00,"246233",3350,"HE0418","HEALTHMATIC LTD",1/4/2021 00:00:00,25/4/2021 00:00:00,"P01-2022"
"P&V","GUNPOWDER PARK","SUPPLIES AND SERVICES","MATERIALS (COUNTERS)","4123","P111375-SERVICE-Visitor Counter Maintenance  1/4/20-31/3/21",25/4/2021 00:00:00,"247177",-3350,"HE0418","HEALTHMATIC LTD",1/4/2021 00:00:00,25/4/2021 00:00:00,"P01-2022"
"P&V","RIVER LEE COUNTRY PARK","SUPPLIES AND SERVICES","MATERIALS (COUNTERS)","4123","P111375-SERVICE-Visitor Counter Maintenance  1/4/20-31/3/21",25/4/2021 00:00:00,"246233",10000,"HE0418","HEALTHMATIC LTD",1/4/2021 00:00:00,25/4/2021 00:00:00,"P01-2022"
"P&V","RIVER LEE COUNTRY PARK","SUPPLIES AND SERVICES","MATERIALS (COUNTERS)","4123","P111375-SERVICE-Visitor Counter Maintenance  1/4/20-31/3/21",25/4/2021 00:00:00,"247177",-10000,"HE0418","HEALTHMATIC LTD",1/4/2021 00:00:00,25/4/2021 00:00:00,"P01-2022"
"P&V","THREE MILLS","SUPPLIES AND SERVICES","MATERIALS (COUNTERS)","4123","P111375-SERVICE-Visitor Counter Maintenance  1/4/20-31/3/21",25/4/2021 00:00:00,"246233",750,"HE0418","HEALTHMATIC LTD",1/4/2021 00:00:00,25/4/2021 00:00:00,"P01-2022"
"P&V","THREE MILLS","SUPPLIES AND SERVICES","MATERIALS (COUNTERS)","4123","P111375-SERVICE-Visitor Counter Maintenance  1/4/20-31/3/21",25/4/2021 00:00:00,"247177",-750,"HE0418","HEALTHMATIC LTD",1/4/2021 00:00:00,25/4/2021 00:00:00,"P01-2022"
"P&V","MYDDELTON HOUSE GARDENS","SUPPLIES AND SERVICES","MATERIALS (PLANTS & SHRUBS)","4126","P111082-SERVICE-Tradescantia a. 'Concord Grape' OG",20/4/2021 00:00:00,"246910",19.5,"HO0428","HOWARD NURSERIES LTD",1/4/2021 00:00:00,25/4/2021 00:00:00,"P01-2022"
"P&V","MYDDELTON HOUSE GARDENS","SUPPLIES AND SERVICES","MATERIALS (PLANTS & SHRUBS)","4126","P111082-SERVICE-Polystichum s. 'Plumosodensum' - 9cm",20/4/2021 00:00:00,"246910",13.05,"HO0428","HOWARD NURSERIES LTD",1/4/2021 00:00:00,25/4/2021 00:00:00,"P01-2022"
"P&V","MYDDELTON HOUSE GARDENS","SUPPLIES AND SERVICES","MATERIALS (PLANTS & SHRUBS)","4126","P111082-SERVICE-Asclepias tuberosa - 9cm x 18",20/4/2021 00:00:00,"246910",23.4,"HO0428","HOWARD NURSERIES LTD",1/4/2021 00:00:00,25/4/2021 00:00:00,"P01-2022"
"P&V","MYDDELTON HOUSE GARDENS","SUPPLIES AND SERVICES","MATERIALS (PLANTS & SHRUBS)","4126","P111082-SERVICE-Chelone obliqua - 9cm",20/4/2021 00:00:00,"246910",11.7,"HO0428","HOWARD NURSERIES LTD",1/4/2021 00:00:00,25/4/2021 00:00:00,"P01-2022"
"P&V","MYDDELTON HOUSE GARDENS","SUPPLIES AND SERVICES","MATERIALS (PLANTS & SHRUBS)","4126","P111082-SERVICE-Cyrtomium fortunei clivicola - 9cm",20/4/2021 00:00:00,"246910",26.1,"HO0428","HOWARD NURSERIES LTD",1/4/2021 00:00:00,25/4/2021 00:00:00,"P01-2022"
"P&V","MYDDELTON HOUSE GARDENS","SUPPLIES AND SERVICES","MATERIALS (PLANTS & SHRUBS)","4126","P111082-SERVICE-Kalimeris yomena 'Shogun'- 9cm",20/4/2021 00:00:00,"246910",8.64,"HO0428","HOWARD NURSERIES LTD",1/4/2021 00:00:00,25/4/2021 00:00:00,"P01-2022"
"P&V","MYDDELTON HOUSE GARDENS","SUPPLIES AND SERVICES","MATERIALS (PLANTS & SHRUBS)","4126","P111082-SERVICE-Polemonium 'Northern Lights' - 9cm",20/4/2021 00:00:00,"246910",16.2,"HO0428","HOWARD NURSERIES LTD",1/4/2021 00:00:00,25/4/2021 00:00:00,"P01-2022"
"P&V","MYDDELTON HOUSE GARDENS","SUPPLIES AND SERVICES","MATERIALS (PLANTS & SHRUBS)","4126","P111082-SERVICE-Saxifraga 'Variegata' (x urbium) 9cm",20/4/2021 00:00:00,"246910",13.05,"HO0428","HOWARD NURSERIES LTD",1/4/2021 00:00:00,25/4/2021 00:00:00,"P01-2022"
"P&V","MYDDELTON HOUSE GARDENS","SUPPLIES AND SERVICES","MATERIALS (PLANTS & SHRUBS)","4126","P111082-SERVICE-Iris 'Carnaby'- OG",20/4/2021 00:00:00,"246910",22.5,"HO0428","HOWARD NURSERIES LTD",1/4/2021 00:00:00,25/4/2021 00:00:00,"P01-2022"
"P&V","MYDDELTON HOUSE GARDENS","SUPPLIES AND SERVICES","MATERIALS (PLANTS & SHRUBS)","4126","P111082-SERVICE-Carex comans 'Frosted Curls' - OG",20/4/2021 00:00:00,"246910",19.5,"HO0428","HOWARD NURSERIES LTD",1/4/2021 00:00:00,25/4/2021 00:00:00,"P01-2022"
"P&V","MYDDELTON HOUSE GARDENS","SUPPLIES AND SERVICES","MATERIALS (PLANTS & SHRUBS)","4126","P111082-SERVICE-Ligularia przewalskii - 9cm",20/4/2021 00:00:00,"246910",29.7,"HO0428","HOWARD NURSERIES LTD",1/4/2021 00:00:00,25/4/2021 00:00:00,"P01-2022"
"P&V","MYDDELTON HOUSE GARDENS","SUPPLIES AND SERVICES","MATERIALS (PLANTS & SHRUBS)","4126","P111082-SERVICE-Iris 'Action Front' - OG",20/4/2021 00:00:00,"246910",22.5,"HO0428","HOWARD NURSERIES LTD",1/4/2021 00:00:00,25/4/2021 00:00:00,"P01-2022"
"P&V","MYDDELTON HOUSE GARDENS","SUPPLIES AND SERVICES","MATERIALS (PLANTS & SHRUBS)","4126","P111082-SERVICE-Astrantia m. 'Gill Richardson Gp' - 9cm",20/4/2021 00:00:00,"246910",26.1,"HO0428","HOWARD NURSERIES LTD",1/4/2021 00:00:00,25/4/2021 00:00:00,"P01-2022"
,"STANSTEAD RECHARGEABLE WORKS","SUPPLIES AND SERVICES","MATERIALS (TOOLS & PLANT)","4127","P111794-SERVICE-marine services",25/4/2021 00:00:00,"247224",937.4,"WA0251","M J MARINE SERVICES",1/4/2021 00:00:00,25/4/2021 00:00:00,"P01-2022"
,"STANSTEAD RECHARGEABLE WORKS","SUPPLIES AND SERVICES","MATERIALS (ENG OTHER)","4130","P111003-SERVICE-Blacking",12/4/2021 00:00:00,"246560",1187.6,"MA0008","AXALTA COATING SYSTEMS HUTHWAITE UK LTD",1/4/2021 00:00:00,25/4/2021 00:00:00,"P01-2022"
,"LEE VALLEY WHITE WATER CENTRE","SUPPLIES AND SERVICES","MATERIALS (CHEMICALS)","4131","P111382-SERVICE-SO for Acid and Hydro for 10 weeks",19/4/2021 00:00:00,"246712",273.43,"AL0074","BRENNTAG UK GROUP LIMITED",1/4/2021 00:00:00,25/4/2021 00:00:00,"P01-2022"
,"LEE VALLEY WHITE WATER CENTRE","SUPPLIES AND SERVICES","MATERIALS (CHEMICALS)","4131","P111382-SERVICE-SO for Acid and Hydro for 10 weeks",19/4/2021 00:00:00,"246920",153.76,"AL0074","BRENNTAG UK GROUP LIMITED",1/4/2021 00:00:00,25/4/2021 00:00:00,"P01-2022"
,"LEE VALLEY WHITE WATER CENTRE","SUPPLIES AND SERVICES","MATERIALS (CHEMICALS)","4131","P111382-SERVICE-SO for Acid and Hydro for 10 weeks",19/4/2021 00:00:00,"246921",273.43,"AL0074","BRENNTAG UK GROUP LIMITED",1/4/2021 00:00:00,25/4/2021 00:00:00,"P01-2022"
,"LEE VALLEY WHITE WATER CENTRE","SUPPLIES AND SERVICES","MATERIALS (CHEMICALS)","4131","P111382-SERVICE-SO for Acid and Hydro for 10 weeks",25/4/2021 00:00:00,"247060",273.43,"AL0074","BRENNTAG UK GROUP LIMITED",1/4/2021 00:00:00,25/4/2021 00:00:00,"P01-2022"
"P&V","LEE VALLEY FARM HOLYFIELDHALL","SUPPLIES AND SERVICES","FEED","4133","P111832-SERVICE-Salt",25/4/2021 00:00:00,"246738",311.06,"BO0246","FOR FARMERS UK LTD",1/4/2021 00:00:00,25/4/2021 00:00:00,"P01-2022"
"P&V","LEE VALLEY FARM HOLYFIELDHALL","SUPPLIES AND SERVICES","FEED","4133","P111833-SERVICE-Golden Flake",25/4/2021 00:00:00,"246940",1294.8,"BO0246","FOR FARMERS UK LTD",1/4/2021 00:00:00,25/4/2021 00:00:00,"P01-2022"
"P&V","LEE VALLEY FARM HOLYFIELDHALL","SUPPLIES AND SERVICES","FEED","4133","P111838-SERVICE-Pioneer",25/4/2021 00:00:00,"247176",840,"BO0246","FOR FARMERS UK LTD",1/4/2021 00:00:00,25/4/2021 00:00:00,"P01-2022"
,"LEE VALLEY FARM HAYES HILL","SUPPLIES AND SERVICES","FEED","4133","P111358-SERVICE-Livefood order",19/4/2021 00:00:00,"246604",13.9,"PE0253","PEREGRINE LIVEFOODS LTD",1/4/2021 00:00:00,25/4/2021 00:00:00,"P01-2022"
,"LEE VALLEY FARM HAYES HILL","SUPPLIES AND SERVICES","FEED","4133","P111142-SERVICE-Jelly pots, fish food, ecoearth",19/4/2021 00:00:00,"246604",50.87,"PE0253","PEREGRINE LIVEFOODS LTD",1/4/2021 00:00:00,25/4/2021 00:00:00,"P01-2022"
,"LEE VALLEY FARM HAYES HILL","SUPPLIES AND SERVICES","FEED","4133","P111296-SERVICE-Livefood order",19/4/2021 00:00:00,"246604",5.23,"PE0253","PEREGRINE LIVEFOODS LTD",1/4/2021 00:00:00,25/4/2021 00:00:00,"P01-2022"
,"LEE VALLEY FARM HAYES HILL","SUPPLIES AND SERVICES","FEED","4133","P111358-SERVICE-Increase for invoice",19/4/2021 00:00:00,"246604",3.6,"PE0253","PEREGRINE LIVEFOODS LTD",1/4/2021 00:00:00,25/4/2021 00:00:00,"P01-2022"
,"LEE VALLEY FARM HAYES HILL","SUPPLIES AND SERVICES","FEED","4133","P111547-SERVICE-Snowflake sawdust",19/4/2021 00:00:00,"246702",10.9,"MO0003","J & M MONCUR",1/4/2021 00:00:00,25/4/2021 00:00:00,"P01-2022"
,"LEE VALLEY FARM HAYES HILL","SUPPLIES AND SERVICES","FEED","4133","P111547-SERVICE-Alpha-A original",19/4/2021 00:00:00,"246702",13.5,"MO0003","J & M MONCUR",1/4/2021 00:00:00,25/4/2021 00:00:00,"P01-2022"
,"LEE VALLEY FARM HAYES HILL","SUPPLIES AND SERVICES","FEED","4133","P111547-SERVICE-5x Goat mix",19/4/2021 00:00:00,"246702",49.5,"MO0003","J & M MONCUR",1/4/2021 00:00:00,25/4/2021 00:00:00,"P01-2022"
,"LEE VALLEY FARM HAYES HILL","SUPPLIES AND SERVICES","FEED","4133","P111457-SERVICE-Burgess excel Gpig x3",19/4/2021 00:00:00,"246734",44.7,"TI0003","G J W TITMUSS LTD",1/4/2021 00:00:00,25/4/2021 00:00:00,"P01-2022"
,"LEE VALLEY FARM HAYES HILL","SUPPLIES AND SERVICES","FEED","4133","P111457-SERVICE-Mixed corn x2",19/4/2021 00:00:00,"246734",17.5,"TI0003","G J W TITMUSS LTD",1/4/2021 00:00:00,25/4/2021 00:00:00,"P01-2022"
,"LEE VALLEY FARM HAYES HILL","SUPPLIES AND SERVICES","FEED","4133","P111457-SERVICE-Donkey diet x2",19/4/2021 00:00:00,"246734",22.1,"TI0003","G J W TITMUSS LTD",1/4/2021 00:00:00,25/4/2021 00:00:00,"P01-2022"
,"LEE VALLEY FARM HAYES HILL","SUPPLIES AND SERVICES","FEED","4133","P111457-SERVICE-Lmix x2",19/4/2021 00:00:00,"246734",23.24,"TI0003","G J W TITMUSS LTD",1/4/2021 00:00:00,25/4/2021 00:00:00,"P01-2022"
,"LEE VALLEY FARM HAYES HILL","SUPPLIES AND SERVICES","FEED","4133","P111457-SERVICE-Mollichaff donkey x1",19/4/2021 00:00:00,"246734",8.98,"TI0003","G J W TITMUSS LTD",1/4/2021 00:00:00,25/4/2021 00:00:00,"P01-2022"
,"LEE VALLEY FARM HAYES HILL","SUPPLIES AND SERVICES","FEED","4133","P111457-SERVICE-Alpha A original x1",19/4/2021 00:00:00,"246734",12.48,"TI0003","G J W TITMUSS LTD",1/4/2021 00:00:00,25/4/2021 00:00:00,"P01-2022"
,"LEE VALLEY FARM HAYES HILL","SUPPLIES AND SERVICES","FEED","4133","P111457-SERVICE-A&P sow nuts x2",19/4/2021 00:00:00,"246734",20.6,"TI0003","G J W TITMUSS LTD",1/4/2021 00:00:00,25/4/2021 00:00:00,"P01-2022"
,"LEE VALLEY FARM HAYES HILL","SUPPLIES AND SERVICES","FEED","4133","P111457-SERVICE-A&P Layers pellets x5",19/4/2021 00:00:00,"246734",49.7,"TI0003","G J W TITMUSS LTD",1/4/2021 00:00:00,25/4/2021 00:00:00,"P01-2022"
,"LEE VALLEY FARM HAYES HILL","SUPPLIES AND SERVICES","FEED","4133","P111457-SERVICE-A&P dry goat mix x10",19/4/2021 00:00:00,"246734",119.6,"TI0003","G J W TITMUSS LTD",1/4/2021 00:00:00,25/4/2021 00:00:00,"P01-2022"
,"LEE VALLEY FARM HAYES HILL","SUPPLIES AND SERVICES","FEED","4133","P111457-SERVICE-Stablebed sawdust x4",19/4/2021 00:00:00,"246734",25,"TI0003","G J W TITMUSS LTD",1/4/2021 00:00:00,25/4/2021 00:00:00,"P01-2022"
,"LEE VALLEY FARM HAYES HILL","SUPPLIES AND SERVICES","FEED","4133","P111457-SERVICE-Burgess excel Rabbit x3",19/4/2021 00:00:00,"246734",40.5,"TI0003","G J W TITMUSS LTD",1/4/2021 00:00:00,25/4/2021 00:00:00,"P01-2022"
,"LEE VALLEY FARM HAYES HILL","SUPPLIES AND SERVICES","FEED","4133","P111628-SERVICE-Livefood order",19/4/2021 00:00:00,"246911",73.6,"PE0253","PEREGRINE LIVEFOODS LTD",1/4/2021 00:00:00,25/4/2021 00:00:00,"P01-2022"
,"LEE VALLEY FARM HAYES HILL","SUPPLIES AND SERVICES","FEED","4133","P111763-SERVICE-Livefood order",25/4/2021 00:00:00,"247168",34.83,"PE0253","PEREGRINE LIVEFOODS LTD",1/4/2021 00:00:00,25/4/2021 00:00:00,"P01-2022"
,"LEE VALLEY RIDING CENTRE","SUPPLIES AND SERVICES","FEED","4133","P111714-SERVICE-feed",19/4/2021 00:00:00,"246441",2160.7,"DO0029","M C DOWLING & SONS",1/4/2021 00:00:00,25/4/2021 00:00:00,"P01-2022"
,"LEE VALLEY RIDING CENTRE","SUPPLIES AND SERVICES","FEED","4133","P111714-SERVICE-feed",19/4/2021 00:00:00,"246683",1122.45,"DO0029","M C DOWLING & SONS",1/4/2021 00:00:00,25/4/2021 00:00:00,"P01-2022"
"P&V","LEE VALLEY FARM HOLYFIELDHALL","SUPPLIES AND SERVICES","SEEDS","4135","P111831-SERVICE-Forage Maize",25/4/2021 00:00:00,"246737",4056,"BO0246","FOR FARMERS UK LTD",1/4/2021 00:00:00,25/4/2021 00:00:00,"P01-2022"
"P&V","LEE VALLEY FARM HOLYFIELDHALL","SUPPLIES AND SERVICES","SPRAYS","4136","P111835-SERVICE-Sprays",25/4/2021 00:00:00,"247003",1869.6,"HA0013","HARLOW AGRICULTURAL MERCHANTS",1/4/2021 00:00:00,25/4/2021 00:00:00,"P01-2022"
"P&V","LEE VALLEY FARM HOLYFIELDHALL","SUPPLIES AND SERVICES","DAIRY SUNDRIES","4138","P111464-SERVICE-Dairy Sundries",25/4/2021 00:00:00,"247047",158.75,"MI0023","MILL DAIRY SERVICES",1/4/2021 00:00:00,25/4/2021 00:00:00,"P01-2022"
"P&V","LEE VALLEY FARM HOLYFIELDHALL","SUPPLIES AND SERVICES","DAIRY SUNDRIES","4138","P111619-SERVICE-Dead Animal Removal",25/4/2021 00:00:00,"247206",125,"MA0074","W MARTIN & SON LIMITED",1/4/2021 00:00:00,25/4/2021 00:00:00,"P01-2022"
"P&V","LEE VALLEY FARM HOLYFIELDHALL","SUPPLIES AND SERVICES","DAIRY SUNDRIES","4138","P111727-SERVICE-1 Pallet of Paper Towels",25/4/2021 00:00:00,"247220",820,"MI0023","MILL DAIRY SERVICES",1/4/2021 00:00:00,25/4/2021 00:00:00,"P01-2022"
"P&V","LEE VALLEY FARM HOLYFIELDHALL","SUPPLIES AND SERVICES","DAIRY SUNDRIES","4138","P111464-SERVICE-Dairy Sundries",25/4/2021 00:00:00,"247221",4.98,"MI0023","MILL DAIRY SERVICES",1/4/2021 00:00:00,25/4/2021 00:00:00,"P01-2022"
,"LV WHITE WATER CATERING","SUPPLIES AND SERVICES","FOOD AND DRINK PURCHASES","4140","BIDFOOD",19/4/2021 00:00:00,"246407",131.21,"360001","BIDFOOD",1/4/2021 00:00:00,25/4/2021 00:00:00,"P01-2022"
,"LV WHITE WATER CATERING","SUPPLIES AND SERVICES","FOOD AND DRINK PURCHASES","4140","P111435-SERVICE-catering drinks",19/4/2021 00:00:00,"246407",219.95,"360001","BIDFOOD",1/4/2021 00:00:00,25/4/2021 00:00:00,"P01-2022"
,"LV WHITE WATER CATERING","SUPPLIES AND SERVICES","FOOD AND DRINK PURCHASES","4140","BIDFOOD",19/4/2021 00:00:00,"246407",88.74,"360001","BIDFOOD",1/4/2021 00:00:00,25/4/2021 00:00:00,"P01-2022"
,"LV WHITE WATER CATERING","SUPPLIES AND SERVICES","FOOD AND DRINK PURCHASES","4140","BIDFOOD",19/4/2021 00:00:00,"246407",-219.95,"360001","BIDFOOD",1/4/2021 00:00:00,25/4/2021 00:00:00,"P01-2022"
,"LV WHITE WATER CATERING","SUPPLIES AND SERVICES","FOOD AND DRINK PURCHASES","4140","P111509-SERVICE-coffeebeans",19/4/2021 00:00:00,"246599",202.26,"RO0216","ROMBOUTS COFFEE GB LIMITED",1/4/2021 00:00:00,25/4/2021 00:00:00,"P01-2022"
,"LV WHITE WATER CATERING","SUPPLIES AND SERVICES","FOOD AND DRINK PURCHASES","4140","P111511-SERVICE-coffee machiemoved",19/4/2021 00:00:00,"246600",212.5,"RO0216","ROMBOUTS COFFEE GB LIMITED",1/4/2021 00:00:00,25/4/2021 00:00:00,"P01-2022"
,"LV WHITE WATER CATERING","SUPPLIES AND SERVICES","FOOD AND DRINK PURCHASES","4140","BIDFOOD",25/4/2021 00:00:00,"246713",397.65,"360001","BIDFOOD",1/4/2021 00:00:00,25/4/2021 00:00:00,"P01-2022"
,"LV WHITE WATER CATERING","SUPPLIES AND SERVICES","FOOD AND DRINK PURCHASES","4140","BIDFOOD",25/4/2021 00:00:00,"246713",110.32,"360001","BIDFOOD",1/4/2021 00:00:00,25/4/2021 00:00:00,"P01-2022"
,"LV WHITE WATER CATERING","SUPPLIES AND SERVICES","FOOD AND DRINK PURCHASES","4140","BIDFOOD",25/4/2021 00:00:00,"246713",-507.97,"360001","BIDFOOD",1/4/2021 00:00:00,25/4/2021 00:00:00,"P01-2022"
,"LV WHITE WATER CATERING","SUPPLIES AND SERVICES","FOOD AND DRINK PURCHASES","4140","P111510-SERVICE-food catering snacks",25/4/2021 00:00:00,"246713",507.97,"360001","BIDFOOD",1/4/2021 00:00:00,25/4/2021 00:00:00,"P01-2022"
,"LV WHITE WATER CATERING","SUPPLIES AND SERVICES","FOOD AND DRINK PURCHASES","4140","P111770-SERVICE-coffee",25/4/2021 00:00:00,"246736",63.18,"RO0216","ROMBOUTS COFFEE GB LIMITED",1/4/2021 00:00:00,25/4/2021 00:00:00,"P01-2022"
,"LV WHITE WATER CATERING","SUPPLIES AND SERVICES","FOOD AND DRINK PURCHASES","4140","P111510-SERVICE-food catering snacks",25/4/2021 00:00:00,"246775",-14.04,"360001","BIDFOOD",1/4/2021 00:00:00,25/4/2021 00:00:00,"P01-2022"
,"LEE VALLEY MARINA STANSTEAD","SUPPLIES AND SERVICES","CLOTHING & UNIFORMS","4225","P111695-SERVICE-order re est: 61879",25/4/2021 00:00:00,"247016",563.44,"DI0017","DIRECT BOOT & SHOE SUPPLIES",1/4/2021 00:00:00,25/4/2021 00:00:00,"P01-2022"
,"LEE VALLEY WHITE WATER CENTRE","SUPPLIES AND SERVICES","CLOTHING & UNIFORMS","4225","P111492-SERVICE-Order as per Quote 61764",25/4/2021 00:00:00,"246989",315.69,"DI0017","DIRECT BOOT & SHOE SUPPLIES",1/4/2021 00:00:00,25/4/2021 00:00:00,"P01-2022"
"CEO","PR/COMMUNICATIONS","SUPPLIES AND SERVICES","OFFICE EXPENSES","4311","P111515-SERVICE-Business cards - 2 kinds x 100 each",25/4/2021 00:00:00,"246993",48,"BE0505","BELMONT PRESS",1/4/2021 00:00:00,25/4/2021 00:00:00,"P01-2022"
"R&B","DEMOCRATIC REPRESENTATION & MA","SUPPLIES AND SERVICES","OFFICE EXPENSES","4311","P111498-SERVICE-1 x Box Gusset Envelopes",13/4/2021 00:00:00,"246594",28.25,"TH0008","JKL SOLUTIONS LTD",1/4/2021 00:00:00,25/4/2021 00:00:00,"P01-2022"
"P&V","MYDDELTON HOUSE GARDENS","SUPPLIES AND SERVICES","OFFICE EXPENSES","4311","P111580-SERVICE-Q- Connect envelope wage, 108 x 102mm",25/4/2021 00:00:00,"246895",35.59,"TH0008","JKL SOLUTIONS LTD",1/4/2021 00:00:00,25/4/2021 00:00:00,"P01-2022"
,"LEE VALLEY ATHLETICS CENTRE","SUPPLIES AND SERVICES","OFFICE EXPENSES","4311","JKL SOLUTIONS LTD",21/4/2021 00:00:00,"246894",151,"TH0008","JKL SOLUTIONS LTD",1/4/2021 00:00:00,25/4/2021 00:00:00,"P01-2022"
,"LEE VALLEY ATHLETICS CENTRE","SUPPLIES AND SERVICES","OFFICE EXPENSES","4311","JKL SOLUTIONS LTD",21/4/2021 00:00:00,"246894",6.07,"TH0008","JKL SOLUTIONS LTD",1/4/2021 00:00:00,25/4/2021 00:00:00,"P01-2022"
,"LEE VALLEY ATHLETICS CENTRE","SUPPLIES AND SERVICES","OFFICE EXPENSES","4311","JKL SOLUTIONS LTD",21/4/2021 00:00:00,"246894",-157.07,"TH0008","JKL SOLUTIONS LTD",1/4/2021 00:00:00,25/4/2021 00:00:00,"P01-2022"
,"LEE VALLEY ATHLETICS CENTRE","SUPPLIES AND SERVICES","OFFICE EXPENSES","4311","P111617-SERVICE-LVAC POSTAGE STAMPS AND ACADEMIC DIARY",21/4/2021 00:00:00,"246894",157.07,"TH0008","JKL SOLUTIONS LTD",1/4/2021 00:00:00,25/4/2021 00:00:00,"P01-2022"
"R&B","INFORMATION TECHNOLOGY","SUPPLIES AND SERVICES","PHOTOCOPYING","4314","KONICA MINOLTA BUSINESS SOLUTI",19/4/2021 00:00:00,"246904",459.6,"KO0071","KONICA MINOLTA BUSINESS SOLUTIONS ( UK) LTD",1/4/2021 00:00:00,25/4/2021 00:00:00,"P01-2022"
"R&B","FINANCE & RESOURCES MANAGEMENT","SUPPLIES AND SERVICES","PUBLICATIONS","4333","P111350-SERVICE-CIPFA subscription 1/4/21 - 31/3/22",1/4/2021 00:00:00,"245854",3760,"CH0002","CIPFA BUSINESS LTD",1/4/2021 00:00:00,25/4/2021 00:00:00,"P01-2022"
"R&B","FINANCE","SUPPLIES AND SERVICES","SUBSCRIPTIONS","4334","P111525-SERVICE-PAYROLL CORPORATE MEMBERSHIP 2021/2022",21/4/2021 00:00:00,"246657",540,"PA0393","PAYROLL ALLIANCE",1/4/2021 00:00:00,25/4/2021 00:00:00,"P01-2022"
"P&V","LEE VALLEY FARM HOLYFIELDHALL","SUPPLIES AND SERVICES","SUBSCRIPTIONS","4334","P111620-SERVICE-Subscription",19/4/2021 00:00:00,"246652",355.03,"NA0005","NATIONAL MILK RECORDS PLC",1/4/2021 00:00:00,25/4/2021 00:00:00,"P01-2022"
"P&V","LEE VALLEY FARM HOLYFIELDHALL","SUPPLIES AND SERVICES","SUBSCRIPTIONS","4334","P111621-SERVICE-12 Month Gatekeeper",19/4/2021 00:00:00,"246655",512,"FA0040","FARMPLAN COMPUTER SYSTEMS",1/4/2021 00:00:00,25/4/2021 00:00:00,"P01-2022"
"P&V","LEE VALLEY FARM HOLYFIELDHALL","SUPPLIES AND SERVICES","SUBSCRIPTIONS","4334","P111622-SERVICE-Rental",19/4/2021 00:00:00,"246664",3490.25,"CH0719","CHANDLERS (FARM EQUIPMENT) LTD",1/4/2021 00:00:00,25/4/2021 00:00:00,"P01-2022"
"R&B","REVENUE SUSPENSE (AUTHORITY)","SUPPLIES AND SERVICES","TELEPHONES (MOBILE)","4484","VODAFONE  LIMITED (CORPORATE)",25/4/2021 00:00:00,"247178",615.37,"VO0010","VODAFONE  LIMITED (CORPORATE)",1/4/2021 00:00:00,25/4/2021 00:00:00,"P01-2022"
"P&V","FISHERIES MANAGEMENT","SUPPLIES AND SERVICES","VOLUNTEERS EXPENSES","4506","P111006-SERVICE-2 x O4 Neoprene Work Boots Fides high Black S",12/4/2021 00:00:00,"246654",71.9,"EN0283","ENGELBERT STRAUSS LIMITED",1/4/2021 00:00:00,25/4/2021 00:00:00,"P01-2022"
"P&V","ALMOST WILD CAMPSITE","SUPPLIES AND SERVICES","MARKETING","4603","P111378-SERVICE-cool camping sub",1/4/2021 00:00:00,"245100",299,"TR0612","TRIPADEE LTD",1/4/2021 00:00:00,25/4/2021 00:00:00,"P01-2022"
"P&V","ALMOST WILD CAMPSITE","SUPPLIES AND SERVICES","MARKETING","4603","P111722-SERVICE-uk campsite sub",20/4/2021 00:00:00,"246951",89.99,"UK0025","UK CAMPSITE CO UK",1/4/2021 00:00:00,25/4/2021 00:00:00,"P01-2022"
,"LEE VALLEY RIDING CENTRE","SUPPLIES AND SERVICES","PEST CONTROL","4625","P111668-SERVICE-pest control x 4 visits",19/4/2021 00:00:00,"246930",340,"CR0059","CRYSTAL SERVICES PLC",1/4/2021 00:00:00,25/4/2021 00:00:00,"P01-2022"
,"LEE VALLEY WHITE WATER CENTRE","SUPPLIES AND SERVICES","PEST CONTROL","4625","P111557-SERVICE-Service period 20.04.21 to 19.07.21",13/4/2021 00:00:00,"246608",756.28,"RE0014","RENTOKIL INITIAL PEST CONTROL",1/4/2021 00:00:00,25/4/2021 00:00:00,"P01-2022"
"R&B","FINANCE & RESOURCES MANAGEMENT","SUPPLIES AND SERVICES","DEBT RECOVERY FEES","4646","P111526-SERVICE-DEBT RECOVERY FEE 2021/2022",21/4/2021 00:00:00,"246219",12.5,"LE0069","LEGAL RECOVERIES AND COLLECTIONS LIMITED",1/4/2021 00:00:00,25/4/2021 00:00:00,"P01-2022"
,"LEE VALLEY MARINA STANSTEAD","SUPPLIES AND SERVICES","SECURITY","4650","P111777-SERVICE-orders A7761195828/A7761365965",25/4/2021 00:00:00,"247193",170.37,"SC0057","SCREWFIX DIRECT LTD",1/4/2021 00:00:00,25/4/2021 00:00:00,"P01-2022"
,"LEE VALLEY MARINA STANSTEAD","SUPPLIES AND SERVICES","SECURITY","4650","P111777-SERVICE-orders A7761195828/A7761365965",25/4/2021 00:00:00,"247194",319.32,"SC0057","SCREWFIX DIRECT LTD",1/4/2021 00:00:00,25/4/2021 00:00:00,"P01-2022"
"P&V","SOUTH AREA RANGERS","SUPPLIES AND SERVICES","SECURITY","4650","P111372-SERVICE-Additional Security - Lea Bridge Road - Coppe",12/4/2021 00:00:00,"246415",1332,"PA0059","PARKGUARD LTD",1/4/2021 00:00:00,25/4/2021 00:00:00,"P01-2022"
,"LV LEISURE CENTRE CAMPSITE","SUPPLIES AND SERVICES","SECURITY","4650","P111389-SERVICE-cctv annual fee",6/4/2021 00:00:00,"245384",3400,"RV0035","RVTV SECURITY LTD",1/4/2021 00:00:00,25/4/2021 00:00:00,"P01-2022"
"CEO","LVLC SERVICE CHARGE","SUPPLIES AND SERVICES","SECURITY","4650","P111730-SERVICE-Picketts Lock Barrier",21/4/2021 00:00:00,"246220",385.5,"NA0171","NAIVETTE SERVICES LTD",1/4/2021 00:00:00,25/4/2021 00:00:00,"P01-2022"
"CEO","PR/COMMUNICATIONS","SUPPLIES AND SERVICES","SPECIAL MARKETING PROJECTS","4652","P111195-SERVICE-Countdown to open - gifs, banner artwork & vi",13/4/2021 00:00:00,"246463",810,"ID0174","IDEAS LIBRARY LTD",1/4/2021 00:00:00,25/4/2021 00:00:00,"P01-2022"
"CEO","PR/COMMUNICATIONS","SUPPLIES AND SERVICES","ONLINE ADVERTISING","4657","P111638-SERVICE-Plan My School Trip listings",25/4/2021 00:00:00,"246998",750,"BE0617","BEST WEB JOBS LTD",1/4/2021 00:00:00,25/4/2021 00:00:00,"P01-2022"
"CEO","PR/COMMUNICATIONS","SUPPLIES AND SERVICES","ARTWORK","4664","P111328-SERVICE-TV screens x 5",25/4/2021 00:00:00,"247000",285,"BL0393","BLUE SEA DESIGN",1/4/2021 00:00:00,25/4/2021 00:00:00,"P01-2022"
,"LEE VALLEY WHITE WATER CENTRE","SUPPLIES AND SERVICES","ENTERTAINMENT & OTHER LICENCES","4711","P111340-SERVICE-MPLC Umbrella License covering term 16.05.21",1/4/2021 00:00:00,"246156",106.29,"MP0457","MPLC HOUSE",1/4/2021 00:00:00,25/4/2021 00:00:00,"P01-2022"
"P&V","LEE VALLEY FARM HOLYFIELDHALL","THIRD PARTY PAYMENTS","VETERINARY SERVICES","4718","P111834-SERVICE-Vets",25/4/2021 00:00:00,"246961",250,"NO0108","WESTPOINT GROUP TRADING LTD",1/4/2021 00:00:00,25/4/2021 00:00:00,"P01-2022"
"P&V","LEE VALLEY FARM HOLYFIELDHALL","THIRD PARTY PAYMENTS","VETERINARY SERVICES","4718","P111635-SERVICE-Vets",25/4/2021 00:00:00,"247005",878.58,"HA0443","HAMPDEN VETERINARY HOSPITAL",1/4/2021 00:00:00,25/4/2021 00:00:00,"P01-2022"
,"LEE VALLEY FARM HAYES HILL","THIRD PARTY PAYMENTS","VETERINARY SERVICES","4718","P111703-SERVICE-Post mortem x2 goats",21/4/2021 00:00:00,"246960",277.43,"NO0108","WESTPOINT GROUP TRADING LTD",1/4/2021 00:00:00,25/4/2021 00:00:00,"P01-2022"
,"LEE VALLEY FARM HAYES HILL","THIRD PARTY PAYMENTS","VETERINARY SERVICES","4718","P111703-SERVICE-Post mortem pig",21/4/2021 00:00:00,"246960",219.31,"NO0108","WESTPOINT GROUP TRADING LTD",1/4/2021 00:00:00,25/4/2021 00:00:00,"P01-2022"
,"LEE VALLEY RIDING CENTRE","THIRD PARTY PAYMENTS","VETERINARY SERVICES","4718","P111773-SERVICE-passport for Apollo",25/4/2021 00:00:00,"247156",20.83,"BR0059","THE BRITISH HORSE SOCIETY LTD",1/4/2021 00:00:00,25/4/2021 00:00:00,"P01-2022"
"P&V","MYDDLETON HSE HERITAGE CENTRE","SUPPLIES AND SERVICES","NET CATERING PURCHASES","4777","BIDFOOD",25/4/2021 00:00:00,"247191",140.08,"360001","BIDFOOD",1/4/2021 00:00:00,25/4/2021 00:00:00,"P01-2022"
"P&V","MYDDLETON HSE HERITAGE CENTRE","SUPPLIES AND SERVICES","NET CATERING PURCHASES","4777","P111754-SERVICE-weekly food/drink",25/4/2021 00:00:00,"247191",434.69,"360001","BIDFOOD",1/4/2021 00:00:00,25/4/2021 00:00:00,"P01-2022"
"P&V","MYDDLETON HSE HERITAGE CENTRE","SUPPLIES AND SERVICES","NET CATERING PURCHASES","4777","BIDFOOD",25/4/2021 00:00:00,"247191",-434.69,"360001","BIDFOOD",1/4/2021 00:00:00,25/4/2021 00:00:00,"P01-2022"
"P&V","MYDDLETON HSE HERITAGE CENTRE","SUPPLIES AND SERVICES","NET CATERING PURCHASES","4777","BIDFOOD",25/4/2021 00:00:00,"247191",294.61,"360001","BIDFOOD",1/4/2021 00:00:00,25/4/2021 00:00:00,"P01-2022"
,"LEE VALLEY MARINA SPRINGFIELD","SUPPLIES AND SERVICES","TRADING AC - EXTERNAL PURCHASE","4875","P111487-SERVICE-Steel & Metals order as per Quotation 1927657",7/4/2021 00:00:00,"246458",1375.6,"AS0304","KLOECKNER METALS UK (formerly ASD METAL SERV)",1/4/2021 00:00:00,25/4/2021 00:00:00,"P01-2022"
,"LEE VALLEY MARINA SPRINGFIELD","SUPPLIES AND SERVICES","TRADING AC - EXTERNAL PURCHASE","4875","P111488-SERVICE-Chandlery Stock 673793",13/4/2021 00:00:00,"246576",213.93,"MI0200","MIDLAND CHANDLERS LIMITED",1/4/2021 00:00:00,25/4/2021 00:00:00,"P01-2022"
,"LEE VALLEY MARINA SPRINGFIELD","SUPPLIES AND SERVICES","TRADING AC - EXTERNAL PURCHASE","4875","P111481-SERVICE-Chandlery Stock  46078",13/4/2021 00:00:00,"246577",4.48,"AQ0033","AQUAFAX LIMITED",1/4/2021 00:00:00,25/4/2021 00:00:00,"P01-2022"
,"LEE VALLEY MARINA SPRINGFIELD","SUPPLIES AND SERVICES","TRADING AC - EXTERNAL PURCHASE","4875","P111481-SERVICE-Chandlery Stock  46078",13/4/2021 00:00:00,"246579",177.01,"AQ0033","AQUAFAX LIMITED",1/4/2021 00:00:00,25/4/2021 00:00:00,"P01-2022"
,"LEE VALLEY MARINA SPRINGFIELD","SUPPLIES AND SERVICES","TRADING AC - EXTERNAL PURCHASE","4875","P111437-SERVICE-Diesel",13/4/2021 00:00:00,"246605",5.13,"SP0543","SPEEDY FUELS LIMITED",1/4/2021 00:00:00,25/4/2021 00:00:00,"P01-2022"
,"LEE VALLEY MARINA SPRINGFIELD","SUPPLIES AND SERVICES","TRADING AC - EXTERNAL PURCHASE","4875","P111437-SERVICE-Chandlery Stock (diesel)",13/4/2021 00:00:00,"246605",4868.75,"SP0543","SPEEDY FUELS LIMITED",1/4/2021 00:00:00,25/4/2021 00:00:00,"P01-2022"
,"LEE VALLEY MARINA SPRINGFIELD","SUPPLIES AND SERVICES","TRADING AC - EXTERNAL PURCHASE","4875","P111061-SERVICE-Chandlery Stock",19/4/2021 00:00:00,"246756",215,"HA0371","HARTS OF OAK",1/4/2021 00:00:00,25/4/2021 00:00:00,"P01-2022"
,"LEE VALLEY MARINA SPRINGFIELD","SUPPLIES AND SERVICES","TRADING AC - EXTERNAL PURCHASE","4875","P111598-SERVICE-Chandlery Stock  677072",19/4/2021 00:00:00,"246759",1.62,"MI0200","MIDLAND CHANDLERS LIMITED",1/4/2021 00:00:00,25/4/2021 00:00:00,"P01-2022"
,"LEE VALLEY MARINA SPRINGFIELD","SUPPLIES AND SERVICES","TRADING AC - EXTERNAL PURCHASE","4875","MIDLAND CHANDLERS LIMITED",19/4/2021 00:00:00,"246760",-824.38,"MI0200","MIDLAND CHANDLERS LIMITED",1/4/2021 00:00:00,25/4/2021 00:00:00,"P01-2022"
,"LEE VALLEY MARINA SPRINGFIELD","SUPPLIES AND SERVICES","TRADING AC - EXTERNAL PURCHASE","4875","MIDLAND CHANDLERS LIMITED",19/4/2021 00:00:00,"246760",801.58,"MI0200","MIDLAND CHANDLERS LIMITED",1/4/2021 00:00:00,25/4/2021 00:00:00,"P01-2022"
,"LEE VALLEY MARINA SPRINGFIELD","SUPPLIES AND SERVICES","TRADING AC - EXTERNAL PURCHASE","4875","MIDLAND CHANDLERS LIMITED",19/4/2021 00:00:00,"246760",22.8,"MI0200","MIDLAND CHANDLERS LIMITED",1/4/2021 00:00:00,25/4/2021 00:00:00,"P01-2022"
,"LEE VALLEY MARINA SPRINGFIELD","SUPPLIES AND SERVICES","TRADING AC - EXTERNAL PURCHASE","4875","P111598-SERVICE-Chandlery Stock  677072",19/4/2021 00:00:00,"246760",824.38,"MI0200","MIDLAND CHANDLERS LIMITED",1/4/2021 00:00:00,25/4/2021 00:00:00,"P01-2022"
,"LEE VALLEY MARINA SPRINGFIELD","SUPPLIES AND SERVICES","TRADING AC - EXTERNAL PURCHASE","4875","P111632-SERVICE-Chandlery Stock",19/4/2021 00:00:00,"246912",215,"HA0371","HARTS OF OAK",1/4/2021 00:00:00,25/4/2021 00:00:00,"P01-2022"
,"LEE VALLEY MARINA SPRINGFIELD","SUPPLIES AND SERVICES","TRADING AC - EXTERNAL PURCHASE","4875","P111046-SERVICE-Chandlery Stock (Gas)",19/4/2021 00:00:00,"246958",653.9,"CA0006","CALOR GAS LIMITED",1/4/2021 00:00:00,25/4/2021 00:00:00,"P01-2022"
,"LEE VALLEY MARINA SPRINGFIELD","SUPPLIES AND SERVICES","TRADING AC - EXTERNAL PURCHASE","4875","P111658-SERVICE-Chandlery Stock",25/4/2021 00:00:00,"246997",572.59,"CR0651","CRAFTMASTER PAINTS",1/4/2021 00:00:00,25/4/2021 00:00:00,"P01-2022"
,"LEE VALLEY MARINA SPRINGFIELD","SUPPLIES AND SERVICES","TRADING AC - EXTERNAL PURCHASE","4875","P111687-SERVICE-Chandlery Stock  679527",25/4/2021 00:00:00,"247012",214,"MI0200","MIDLAND CHANDLERS LIMITED",1/4/2021 00:00:00,25/4/2021 00:00:00,"P01-2022"
,"LEE VALLEY MARINA SPRINGFIELD","SUPPLIES AND SERVICES","TRADING AC - EXTERNAL PURCHASE","4875","P111673-SERVICE-Chandlery Stock  47819",25/4/2021 00:00:00,"247013",180.95,"AQ0033","AQUAFAX LIMITED",1/4/2021 00:00:00,25/4/2021 00:00:00,"P01-2022"
,"LEE VALLEY MARINA SPRINGFIELD","SUPPLIES AND SERVICES","TRADING AC - EXTERNAL PURCHASE","4875","P111687-SERVICE-Chandlery Stock  679527",25/4/2021 00:00:00,"247032",71.4,"MI0200","MIDLAND CHANDLERS LIMITED",1/4/2021 00:00:00,25/4/2021 00:00:00,"P01-2022"
,"LEE VALLEY MARINA SPRINGFIELD","SUPPLIES AND SERVICES","TRADING AC - EXTERNAL PURCHASE","4875","P111742-SERVICE-Chandlery Stock  681362",25/4/2021 00:00:00,"247169",386.02,"MI0200","MIDLAND CHANDLERS LIMITED",1/4/2021 00:00:00,25/4/2021 00:00:00,"P01-2022"
,"LEE VALLEY MARINA SPRINGFIELD","SUPPLIES AND SERVICES","TRADING AC - EXTERNAL PURCHASE","4875","P111715-SERVICE-Chandlery Stock",25/4/2021 00:00:00,"247180",818.89,"EL0376","ELSAN LTD",1/4/2021 00:00:00,25/4/2021 00:00:00,"P01-2022"
,"LEE VALLEY MARINA SPRINGFIELD","SUPPLIES AND SERVICES","TRADING AC - EXTERNAL PURCHASE","4875","P111481-SERVICE-Chandlery Stock  46078",25/4/2021 00:00:00,"247196",2.24,"AQ0033","AQUAFAX LIMITED",1/4/2021 00:00:00,25/4/2021 00:00:00,"P01-2022"
,"LEE VALLEY MARINA SPRINGFIELD","SUPPLIES AND SERVICES","TRADING AC - EXTERNAL PURCHASE","4875","P111598-SERVICE-Chandlery Stock  677072",25/4/2021 00:00:00,"247197",6.48,"MI0200","MIDLAND CHANDLERS LIMITED",1/4/2021 00:00:00,25/4/2021 00:00:00,"P01-2022"
,"STANSTEAD RECHARGEABLE WORKS","SUPPLIES AND SERVICES","TRADING AC - EXTERNAL PURCHASE","4875","P111444-SERVICE-chnadlery stock",12/4/2021 00:00:00,"246438",17.2,"MI0200","MIDLAND CHANDLERS LIMITED",1/4/2021 00:00:00,25/4/2021 00:00:00,"P01-2022"
,"STANSTEAD RECHARGEABLE WORKS","SUPPLIES AND SERVICES","TRADING AC - EXTERNAL PURCHASE","4875","P111444-SERVICE-chnadlery stock",12/4/2021 00:00:00,"246439",434.07,"MI0200","MIDLAND CHANDLERS LIMITED",1/4/2021 00:00:00,25/4/2021 00:00:00,"P01-2022"
,"STANSTEAD RECHARGEABLE WORKS","SUPPLIES AND SERVICES","TRADING AC - EXTERNAL PURCHASE","4875","P111446-SERVICE-paint #672579",13/4/2021 00:00:00,"246474",267.28,"MI0200","MIDLAND CHANDLERS LIMITED",1/4/2021 00:00:00,25/4/2021 00:00:00,"P01-2022"
,"STANSTEAD RECHARGEABLE WORKS","SUPPLIES AND SERVICES","TRADING AC - EXTERNAL PURCHASE","4875","P111442-SERVICE-chandlery stock",12/4/2021 00:00:00,"246475",581.49,"AQ0033","AQUAFAX LIMITED",1/4/2021 00:00:00,25/4/2021 00:00:00,"P01-2022"
,"STANSTEAD RECHARGEABLE WORKS","SUPPLIES AND SERVICES","TRADING AC - EXTERNAL PURCHASE","4875","P111442-SERVICE-chandlery stock",19/4/2021 00:00:00,"246578",2.26,"AQ0033","AQUAFAX LIMITED",1/4/2021 00:00:00,25/4/2021 00:00:00,"P01-2022"
,"STANSTEAD RECHARGEABLE WORKS","SUPPLIES AND SERVICES","TRADING AC - EXTERNAL PURCHASE","4875","P111442-SERVICE-chandlery stock",19/4/2021 00:00:00,"246602",94.4,"AQ0033","AQUAFAX LIMITED",1/4/2021 00:00:00,25/4/2021 00:00:00,"P01-2022"
,"STANSTEAD RECHARGEABLE WORKS","SUPPLIES AND SERVICES","TRADING AC - EXTERNAL PURCHASE","4875","P111444-SERVICE-chnadlery stock",19/4/2021 00:00:00,"246603",4.23,"MI0200","MIDLAND CHANDLERS LIMITED",1/4/2021 00:00:00,25/4/2021 00:00:00,"P01-2022"
,"STANSTEAD RECHARGEABLE WORKS","SUPPLIES AND SERVICES","TRADING AC - EXTERNAL PURCHASE","4875","P111521-SERVICE-chandlery stock",19/4/2021 00:00:00,"246697",393.94,"MI0200","MIDLAND CHANDLERS LIMITED",1/4/2021 00:00:00,25/4/2021 00:00:00,"P01-2022"
,"STANSTEAD RECHARGEABLE WORKS","SUPPLIES AND SERVICES","TRADING AC - EXTERNAL PURCHASE","4875","P111575-SERVICE-chandlery stock",19/4/2021 00:00:00,"246714",284.37,"CR0651","CRAFTMASTER PAINTS",1/4/2021 00:00:00,25/4/2021 00:00:00,"P01-2022"
,"STANSTEAD RECHARGEABLE WORKS","SUPPLIES AND SERVICES","TRADING AC - EXTERNAL PURCHASE","4875","P111592-SERVICE-logs & charcoal",19/4/2021 00:00:00,"246757",240,"HA0371","HARTS OF OAK",1/4/2021 00:00:00,25/4/2021 00:00:00,"P01-2022"
,"STANSTEAD RECHARGEABLE WORKS","SUPPLIES AND SERVICES","TRADING AC - EXTERNAL PURCHASE","4875","P111592-SERVICE-extra for invoice",19/4/2021 00:00:00,"246757",20,"HA0371","HARTS OF OAK",1/4/2021 00:00:00,25/4/2021 00:00:00,"P01-2022"
,"STANSTEAD RECHARGEABLE WORKS","SUPPLIES AND SERVICES","TRADING AC - EXTERNAL PURCHASE","4875","P111595-SERVICE-antifouling",19/4/2021 00:00:00,"246761",57.76,"MI0200","MIDLAND CHANDLERS LIMITED",1/4/2021 00:00:00,25/4/2021 00:00:00,"P01-2022"
,"STANSTEAD RECHARGEABLE WORKS","SUPPLIES AND SERVICES","TRADING AC - EXTERNAL PURCHASE","4875","P111611-SERVICE-chandlery stock",19/4/2021 00:00:00,"246762",10.46,"MI0200","MIDLAND CHANDLERS LIMITED",1/4/2021 00:00:00,25/4/2021 00:00:00,"P01-2022"
,"STANSTEAD RECHARGEABLE WORKS","SUPPLIES AND SERVICES","TRADING AC - EXTERNAL PURCHASE","4875","P111611-SERVICE-chandlery stock",19/4/2021 00:00:00,"246915",384.28,"MI0200","MIDLAND CHANDLERS LIMITED",1/4/2021 00:00:00,25/4/2021 00:00:00,"P01-2022"
,"STANSTEAD RECHARGEABLE WORKS","SUPPLIES AND SERVICES","TRADING AC - EXTERNAL PURCHASE","4875","MIDLAND CHANDLERS LIMITED",19/4/2021 00:00:00,"246915",-384.28,"MI0200","MIDLAND CHANDLERS LIMITED",1/4/2021 00:00:00,25/4/2021 00:00:00,"P01-2022"
,"STANSTEAD RECHARGEABLE WORKS","SUPPLIES AND SERVICES","TRADING AC - EXTERNAL PURCHASE","4875","MIDLAND CHANDLERS LIMITED",19/4/2021 00:00:00,"246915",377.87,"MI0200","MIDLAND CHANDLERS LIMITED",1/4/2021 00:00:00,25/4/2021 00:00:00,"P01-2022"
,"STANSTEAD RECHARGEABLE WORKS","SUPPLIES AND SERVICES","TRADING AC - EXTERNAL PURCHASE","4875","MIDLAND CHANDLERS LIMITED",19/4/2021 00:00:00,"246915",6.41,"MI0200","MIDLAND CHANDLERS LIMITED",1/4/2021 00:00:00,25/4/2021 00:00:00,"P01-2022"
,"STANSTEAD RECHARGEABLE WORKS","SUPPLIES AND SERVICES","TRADING AC - EXTERNAL PURCHASE","4875","P111639-SERVICE-antifoul",19/4/2021 00:00:00,"246916",57.76,"MI0200","MIDLAND CHANDLERS LIMITED",1/4/2021 00:00:00,25/4/2021 00:00:00,"P01-2022"
,"STANSTEAD RECHARGEABLE WORKS","SUPPLIES AND SERVICES","TRADING AC - EXTERNAL PURCHASE","4875","P111444-SERVICE-chnadlery stock",19/4/2021 00:00:00,"246917",24.32,"MI0200","MIDLAND CHANDLERS LIMITED",1/4/2021 00:00:00,25/4/2021 00:00:00,"P01-2022"
,"STANSTEAD RECHARGEABLE WORKS","SUPPLIES AND SERVICES","TRADING AC - EXTERNAL PURCHASE","4875","P111640-SERVICE-chandlery stock #47429",19/4/2021 00:00:00,"246918",275.6,"AQ0033","AQUAFAX LIMITED",1/4/2021 00:00:00,25/4/2021 00:00:00,"P01-2022"
,"STANSTEAD RECHARGEABLE WORKS","SUPPLIES AND SERVICES","TRADING AC - EXTERNAL PURCHASE","4875","P111625-SERVICE-2200L red diesel @ 53.5ppl",19/4/2021 00:00:00,"246922",1177,"SP0543","SPEEDY FUELS LIMITED",1/4/2021 00:00:00,25/4/2021 00:00:00,"P01-2022"
,"STANSTEAD RECHARGEABLE WORKS","SUPPLIES AND SERVICES","TRADING AC - EXTERNAL PURCHASE","4875","P110946-SERVICE-beta 43 engine to be supplied and fitted",25/4/2021 00:00:00,"246953",5396,"BE0198","BETA MARINE LIMITED",1/4/2021 00:00:00,25/4/2021 00:00:00,"P01-2022"
,"STANSTEAD RECHARGEABLE WORKS","SUPPLIES AND SERVICES","TRADING AC - EXTERNAL PURCHASE","4875","P110946-SERVICE-changed to beta 50",25/4/2021 00:00:00,"246953",221,"BE0198","BETA MARINE LIMITED",1/4/2021 00:00:00,25/4/2021 00:00:00,"P01-2022"
,"STANSTEAD RECHARGEABLE WORKS","SUPPLIES AND SERVICES","TRADING AC - EXTERNAL PURCHASE","4875","P111661-SERVICE-chandlery stock",25/4/2021 00:00:00,"246988",357.99,"MI0200","MIDLAND CHANDLERS LIMITED",1/4/2021 00:00:00,25/4/2021 00:00:00,"P01-2022"
,"STANSTEAD RECHARGEABLE WORKS","SUPPLIES AND SERVICES","TRADING AC - EXTERNAL PURCHASE","4875","P111685-SERVICE-chandlery stock",25/4/2021 00:00:00,"246996",54.72,"AS0036","ASAP SUPPLIES",1/4/2021 00:00:00,25/4/2021 00:00:00,"P01-2022"
,"STANSTEAD RECHARGEABLE WORKS","SUPPLIES AND SERVICES","TRADING AC - EXTERNAL PURCHASE","4875","P111649-SERVICE-chandlery stock #wso0221192",25/4/2021 00:00:00,"247006",121.03,"CE0510","CENTURION EUROPE LIMITED",1/4/2021 00:00:00,25/4/2021 00:00:00,"P01-2022"
,"STANSTEAD RECHARGEABLE WORKS","SUPPLIES AND SERVICES","TRADING AC - EXTERNAL PURCHASE","4875","P111723-SERVICE-chandlery stock",25/4/2021 00:00:00,"247033",278.57,"MI0200","MIDLAND CHANDLERS LIMITED",1/4/2021 00:00:00,25/4/2021 00:00:00,"P01-2022"
,"STANSTEAD RECHARGEABLE WORKS","SUPPLIES AND SERVICES","TRADING AC - EXTERNAL PURCHASE","4875","P111723-SERVICE-chandlery stock",25/4/2021 00:00:00,"247034",345.25,"MI0200","MIDLAND CHANDLERS LIMITED",1/4/2021 00:00:00,25/4/2021 00:00:00,"P01-2022"
,"STANSTEAD RECHARGEABLE WORKS","SUPPLIES AND SERVICES","TRADING AC - EXTERNAL PURCHASE","4875","P111595-SERVICE-antifouling",25/4/2021 00:00:00,"247035",57.76,"MI0200","MIDLAND CHANDLERS LIMITED",1/4/2021 00:00:00,25/4/2021 00:00:00,"P01-2022"
,"STANSTEAD RECHARGEABLE WORKS","SUPPLIES AND SERVICES","TRADING AC - EXTERNAL PURCHASE","4875","P111724-SERVICE-chandlery stock #48101",25/4/2021 00:00:00,"247045",393.82,"AQ0033","AQUAFAX LIMITED",1/4/2021 00:00:00,25/4/2021 00:00:00,"P01-2022"
,"STANSTEAD RECHARGEABLE WORKS","SUPPLIES AND SERVICES","TRADING AC - EXTERNAL PURCHASE","4875","P111595-SERVICE-antifouling",25/4/2021 00:00:00,"247170",75.46,"MI0200","MIDLAND CHANDLERS LIMITED",1/4/2021 00:00:00,25/4/2021 00:00:00,"P01-2022"
,"STANSTEAD RECHARGEABLE WORKS","SUPPLIES AND SERVICES","TRADING AC - EXTERNAL PURCHASE","4875","P111759-SERVICE-chandlery stock",25/4/2021 00:00:00,"247171",36.95,"MI0200","MIDLAND CHANDLERS LIMITED",1/4/2021 00:00:00,25/4/2021 00:00:00,"P01-2022"
,"STANSTEAD RECHARGEABLE WORKS","SUPPLIES AND SERVICES","TRADING AC - EXTERNAL PURCHASE","4875","P111743-SERVICE-heater hose",25/4/2021 00:00:00,"247173",20.83,"AS0036","ASAP SUPPLIES",1/4/2021 00:00:00,25/4/2021 00:00:00,"P01-2022"
,"STANSTEAD RECHARGEABLE WORKS","SUPPLIES AND SERVICES","TRADING AC - EXTERNAL PURCHASE","4875","P111442-SERVICE-chandlery stock",25/4/2021 00:00:00,"247195",18.94,"AQ0033","AQUAFAX LIMITED",1/4/2021 00:00:00,25/4/2021 00:00:00,"P01-2022"
,"LEE VALLEY CAMPSITE","SUPPLIES AND SERVICES","BOTTLED GAS","4877","P111445-SERVICE-10x47kg gas bottles",19/4/2021 00:00:00,"246740",563,"FL0147","FLOGAS BRITAIN LIMITED",1/4/2021 00:00:00,25/4/2021 00:00:00,"P01-2022"
"P&V","AWARDS AND ACCREDITATIONS","SUPPLIES AND SERVICES","OTHER EXPENSES","4899","P110546-SERVICE-Green Flag application 2021",1/4/2021 00:00:00,"245698",3271,"KE0078","KEEP BRITAIN TIDY",1/4/2021 00:00:00,25/4/2021 00:00:00,"P01-2022"
"P&V","ASSET PROTECTION, MAINT, DEVEL","CAPITAL EXPENDITURE","CAPITAL EXPENDITURE","4990","P111355-SERVICE-Delivery",13/4/2021 00:00:00,"246460",15,"DM0180","DMA SIGNS LIMITED",1/4/2021 00:00:00,25/4/2021 00:00:00,"P01-2022"
"P&V","ASSET PROTECTION, MAINT, DEVEL","CAPITAL EXPENDITURE","CAPITAL EXPENDITURE","4990","P111355-SERVICE-4x Automated Hand Sanitisers",13/4/2021 00:00:00,"246460",180,"DM0180","DMA SIGNS LIMITED",1/4/2021 00:00:00,25/4/2021 00:00:00,"P01-2022"
"P&V","ASSET PROTECTION, MAINT, DEVEL","CAPITAL EXPENDITURE","CAPITAL EXPENDITURE","4990","P111170-SERVICE-LVAC Further Emergency Lighting works",12/4/2021 00:00:00,"246589",550,"PF0171","P4 LIMITED",1/4/2021 00:00:00,25/4/2021 00:00:00,"P01-2022"
"P&V","ASSET PROTECTION, MAINT, DEVEL","CAPITAL EXPENDITURE","CAPITAL EXPENDITURE","4990","P105278-SERVICE-LVIC Chiller Rental",13/4/2021 00:00:00,"246601",2105,"TR0160","TRANE UK LIMITED",1/4/2021 00:00:00,25/4/2021 00:00:00,"P01-2022"
"P&V","ASSET PROTECTION, MAINT, DEVEL","CAPITAL EXPENDITURE","CAPITAL EXPENDITURE","4990","KENDALL & SONS LIMITED",19/4/2021 00:00:00,"246744",850,"KE0023","KENDALL & SONS LIMITED",1/4/2021 00:00:00,25/4/2021 00:00:00,"P01-2022"
"P&V","ASSET PROTECTION, MAINT, DEVEL","CAPITAL EXPENDITURE","CAPITAL EXPENDITURE","4990","KENDALL & SONS LIMITED",19/4/2021 00:00:00,"246744",-950,"KE0023","KENDALL & SONS LIMITED",1/4/2021 00:00:00,25/4/2021 00:00:00,"P01-2022"
"P&V","ASSET PROTECTION, MAINT, DEVEL","CAPITAL EXPENDITURE","CAPITAL EXPENDITURE","4990","P111524-SERVICE-Repair Water Leak at Holyfiled Farm Annexe",19/4/2021 00:00:00,"246744",950,"KE0023","KENDALL & SONS LIMITED",1/4/2021 00:00:00,25/4/2021 00:00:00,"P01-2022"
"P&V","ASSET PROTECTION, MAINT, DEVEL","CAPITAL EXPENDITURE","CAPITAL EXPENDITURE","4990","KENDALL & SONS LIMITED",19/4/2021 00:00:00,"246744",100,"KE0023","KENDALL & SONS LIMITED",1/4/2021 00:00:00,25/4/2021 00:00:00,"P01-2022"
"P&V","ASSET PROTECTION, MAINT, DEVEL","CAPITAL EXPENDITURE","CAPITAL EXPENDITURE","4990","P109354-SERVICE-WWC - CCTV system and camera upgrade",21/4/2021 00:00:00,"246751",962,"IQ0022","IQUAL",1/4/2021 00:00:00,25/4/2021 00:00:00,"P01-2022"
"P&V","ASSET PROTECTION, MAINT, DEVEL","CAPITAL EXPENDITURE","CAPITAL EXPENDITURE","4990","P110657-SERVICE-Emg Lighting Parts - LVAC",21/4/2021 00:00:00,"246772",457.2,"PF0171","P4 LIMITED",1/4/2021 00:00:00,25/4/2021 00:00:00,"P01-2022"
"P&V","ASSET PROTECTION, MAINT, DEVEL","CAPITAL EXPENDITURE","CAPITAL EXPENDITURE","4990","P111170-SERVICE-LVAC Further Emergency Lighting works",21/4/2021 00:00:00,"246773",1100,"PF0171","P4 LIMITED",1/4/2021 00:00:00,25/4/2021 00:00:00,"P01-2022"
"P&V","ASSET PROTECTION, MAINT, DEVEL","CAPITAL EXPENDITURE","CAPITAL EXPENDITURE","4990","P111224-SERVICE-Dobbs Service Macerators",25/4/2021 00:00:00,"246781",970,"CO0550","CONVERT WATER LTD",1/4/2021 00:00:00,25/4/2021 00:00:00,"P01-2022"
"P&V","ASSET PROTECTION, MAINT, DEVEL","CAPITAL EXPENDITURE","CAPITAL EXPENDITURE","4990","P111224-SERVICE-agreed increase",25/4/2021 00:00:00,"246781",200,"CO0550","CONVERT WATER LTD",1/4/2021 00:00:00,25/4/2021 00:00:00,"P01-2022"
"P&V","ASSET PROTECTION, MAINT, DEVEL","CAPITAL EXPENDITURE","CAPITAL EXPENDITURE","4990","P111225-SERVICE-Velo - Smoke Test Foul Drains",25/4/2021 00:00:00,"247021",560,"CO0550","CONVERT WATER LTD",1/4/2021 00:00:00,25/4/2021 00:00:00,"P01-2022"
"P&V","BIODIVERSITY ACTION PLAN","CAPITAL EXPENDITURE","CAPITAL EXPENDITURE","4990","P111707-SERVICE-Contribution to Herts Water Vole Project 2021",25/4/2021 00:00:00,"247184",2750,"HE0275","HERTS & MIDDLESEX WILDLIFE TRUST",1/4/2021 00:00:00,25/4/2021 00:00:00,"P01-2022"
,"LEE VALLEY ICE CENTRE","CAPITAL EXPENDITURE","CAPITAL EXPENDITURE","4990","P111760-SERVICE-Project Management March 2021",21/4/2021 00:00:00,"246924",23290,"WR0199","WRENBRIDGE LAND LTD",1/4/2021 00:00:00,25/4/2021 00:00:00,"P01-2022"
"R&B","HUMAN RESOURCES","THIRD PARTY PAYMENTS","CONSULTANTS (GENERAL)","5110","P111376-SERVICE-VINE HR SUBS APRIL 21 - MARCH 22",13/4/2021 00:00:00,"246239",3000,"VI0074","VINE HR LIMITED",1/4/2021 00:00:00,25/4/2021 00:00:00,"P01-2022"
"R&B","HUMAN RESOURCES","THIRD PARTY PAYMENTS","CONSULTANTS (GENERAL)","5110","P110807-SERVICE-EMPLOYEE ASSISTANCE PROG 2021/22",25/4/2021 00:00:00,"247022",3299.2,"HE0347","HEALTH ASSURED LIMITED",1/4/2021 00:00:00,25/4/2021 00:00:00,"P01-2022"
"CEO","PR/COMMUNICATIONS","THIRD PARTY PAYMENTS","CONSULTANTS (GENERAL)","5110","P111228-SERVICE-Communications Support",25/4/2021 00:00:00,"247062",2302.56,"LO0024","LONDON COMMUNICATIONS AGENCY LTD",1/4/2021 00:00:00,25/4/2021 00:00:00,"P01-2022"
"R&B","FINANCE & RESOURCES MANAGEMENT","THIRD PARTY PAYMENTS","CONSULTANTS (GENERAL)","5110","P111756-SERVICE-4433728 NE 16 Mar 2015",21/4/2021 00:00:00,"246985",7500,"MO0036","MONTAGU EVANS LLP",1/4/2021 00:00:00,25/4/2021 00:00:00,"P01-2022"
"R&B","FINANCE & RESOURCES MANAGEMENT","THIRD PARTY PAYMENTS","CONSULTANTS (GENERAL)","5110","TOWN LEGAL LLP",25/4/2021 00:00:00,"247057",15,"TO0616","TOWN LEGAL LLP",1/4/2021 00:00:00,25/4/2021 00:00:00,"P01-2022"
"R&B","FINANCE & RESOURCES MANAGEMENT","THIRD PARTY PAYMENTS","CONSULTANTS (GENERAL)","5110","P111850-SERVICE-Fees for trust works",25/4/2021 00:00:00,"247057",5085.8,"TO0616","TOWN LEGAL LLP",1/4/2021 00:00:00,25/4/2021 00:00:00,"P01-2022"
"R&B","FINANCE & RESOURCES MANAGEMENT","THIRD PARTY PAYMENTS","CONSULTANTS (GENERAL)","5110","TOWN LEGAL LLP",25/4/2021 00:00:00,"247057",-5085.8,"TO0616","TOWN LEGAL LLP",1/4/2021 00:00:00,25/4/2021 00:00:00,"P01-2022"
"R&B","FINANCE & RESOURCES MANAGEMENT","THIRD PARTY PAYMENTS","CONSULTANTS (GENERAL)","5110","TOWN LEGAL LLP",25/4/2021 00:00:00,"247057",5070.8,"TO0616","TOWN LEGAL LLP",1/4/2021 00:00:00,25/4/2021 00:00:00,"P01-2022"
"R&B","INTERNAL AUDIT/HEALTH & SAFETY","THIRD PARTY PAYMENTS","CONSULTANTS (GENERAL)","5110","P111631-SERVICE-Annual Health and Safety Service contract 202",25/4/2021 00:00:00,"247167",6900,"RI0181","RD HEALTH & SAFETY LIMITED",1/4/2021 00:00:00,25/4/2021 00:00:00,"P01-2022"
"CEO","LEGAL SERVICES","THIRD PARTY PAYMENTS","CONSULTANTS (GENERAL)","5110","P111578-SERVICE-Services of Daud",19/4/2021 00:00:00,"246606",1100,"VE0044","VENN GROUP LTD",1/4/2021 00:00:00,25/4/2021 00:00:00,"P01-2022"
"CEO","LEGAL SERVICES","THIRD PARTY PAYMENTS","CONSULTANTS (GENERAL)","5110","P111578-SERVICE-Services of Daud",19/4/2021 00:00:00,"246939",1100,"VE0044","VENN GROUP LTD",1/4/2021 00:00:00,25/4/2021 00:00:00,"P01-2022"
"CEO","LEGAL SERVICES","THIRD PARTY PAYMENTS","CONSULTANTS (GENERAL)","5110","P111726-SERVICE-Rye House Speedway Advice",25/4/2021 00:00:00,"246994",600,"YO0009","MARTIN YOUNG",1/4/2021 00:00:00,25/4/2021 00:00:00,"P01-2022"
"CEO","LEGAL SERVICES","THIRD PARTY PAYMENTS","CONSULTANTS (GENERAL)","5110","P111348-SERVICE-Professional fees Mr Michael White",25/4/2021 00:00:00,"247009",4215,"KB0138","11KBW",1/4/2021 00:00:00,25/4/2021 00:00:00,"P01-2022"
"CEO","LEGAL SERVICES","THIRD PARTY PAYMENTS","CONSULTANTS (GENERAL)","5110","P111578-SERVICE-Services of Daud",25/4/2021 00:00:00,"247198",1375,"VE0044","VENN GROUP LTD",1/4/2021 00:00:00,25/4/2021 00:00:00,"P01-2022"
"R&B","BALANCE SHEET (AUTHORITY)","CREDITORS","EMPLOYEES INCOME TAX","6701","PAYE",21/4/2021 00:00:00,"246900",80263.32,"HM0368","HMRC",1/4/2021 00:00:00,25/4/2021 00:00:00,"P01-2022"
"R&B","BALANCE SHEET (AUTHORITY)","CREDITORS","EMPLOYEES NATIONAL INSURANCE","6702","PAYE",21/4/2021 00:00:00,"246900",48182.42,"HM0368","HMRC",1/4/2021 00:00:00,25/4/2021 00:00:00,"P01-2022"
"R&B","BALANCE SHEET (AUTHORITY)","CREDITORS","EMPLOYERS NATIONAL INSURANCE","6704","PAYE",21/4/2021 00:00:00,"246900",63147.64,"HM0368","HMRC",1/4/2021 00:00:00,25/4/2021 00:00:00,"P01-2022"
"R&B","BALANCE SHEET (AUTHORITY)","CREDITORS","EMPLOYEES PENSION LGPS","6706","EMPLOYEE CONTRIBUTION",21/4/2021 00:00:00,"246901",40880.03,"LO0334","LONDON PENSION FUND OPERATIONAL ACCOUNT",1/4/2021 00:00:00,25/4/2021 00:00:00,"P01-2022"
"R&B","BALANCE SHEET (AUTHORITY)","CREDITORS","EMPLOYEES PENSION LGPS","6706","AVC CONTRIBUTION",21/4/2021 00:00:00,"246902",225,"LO0455","LOCAL GOVERNMENT AVC DEPARTMENT",1/4/2021 00:00:00,25/4/2021 00:00:00,"P01-2022"
"R&B","BALANCE SHEET (AUTHORITY)","CREDITORS","EMPLOYERS PENSION LGPS","6707","EMPLOYER CONTRIBUTION",21/4/2021 00:00:00,"246901",93264.27,"LO0334","LONDON PENSION FUND OPERATIONAL ACCOUNT",1/4/2021 00:00:00,25/4/2021 00:00:00,"P01-2022"
"R&B","BALANCE SHEET (AUTHORITY)","CREDITORS","EMPLOYEES STUDENT LOANS","6709","PAYE",21/4/2021 00:00:00,"246900",2110,"HM0368","HMRC",1/4/2021 00:00:00,25/4/2021 00:00:00,"P01-2022"
"R&B","BALANCE SHEET (AUTHORITY)","CREDITORS","EMPLOYEES UNION SUBSCRIPTIONS","6711","MEMBERSHIP FEES",21/4/2021 00:00:00,"246903",87.35,"UN0002","UNISON Greater London Region",1/4/2021 00:00:00,25/4/2021 00:00:00,"P01-2022"
"R&B","BALANCE SHEET (AUTHORITY)","CREDITORS","EMPLOYEES SMP/SSP","6712","PAYE",21/4/2021 00:00:00,"246900",-557.84,"HM0368","HMRC",1/4/2021 00:00:00,25/4/2021 00:00:00,"P01-2022"
"R&B","BALANCE SHEET (AUTHORITY)","CREDITORS","CONSTRUCTION INDUSTRY SCHEME","6721","R G JOYCE",1/4/2021 00:00:00,"246324",-846,"JO0019","R G JOYCE",1/4/2021 00:00:00,25/4/2021 00:00:00,"P01-2022"
"R&B","BALANCE SHEET (AUTHORITY)","CREDITORS","CONSTRUCTION INDUSTRY SCHEME","6721","KENDALL & SONS LIMITED",1/4/2021 00:00:00,"246327",-367.6,"KE0023","KENDALL & SONS LIMITED",1/4/2021 00:00:00,25/4/2021 00:00:00,"P01-2022"
"R&B","BALANCE SHEET (AUTHORITY)","CREDITORS","CONSTRUCTION INDUSTRY SCHEME","6721","CAPSER",1/4/2021 00:00:00,"246339",-40,"MO0041","CAPSER",1/4/2021 00:00:00,25/4/2021 00:00:00,"P01-2022"
"R&B","BALANCE SHEET (AUTHORITY)","CREDITORS","CONSTRUCTION INDUSTRY SCHEME","6721","R G JOYCE",7/4/2021 00:00:00,"246520",-80,"JO0019","R G JOYCE",1/4/2021 00:00:00,25/4/2021 00:00:00,"P01-2022"
"R&B","BALANCE SHEET (AUTHORITY)","CREDITORS","CONSTRUCTION INDUSTRY SCHEME","6721","KENDALL & SONS LIMITED",7/4/2021 00:00:00,"246523",-20,"KE0023","KENDALL & SONS LIMITED",1/4/2021 00:00:00,25/4/2021 00:00:00,"P01-2022"
"R&B","BALANCE SHEET (AUTHORITY)","CREDITORS","CONSTRUCTION INDUSTRY SCHEME","6721","CAPSER",7/4/2021 00:00:00,"246533",-116.2,"MO0041","CAPSER",1/4/2021 00:00:00,25/4/2021 00:00:00,"P01-2022"
"R&B","BALANCE SHEET (AUTHORITY)","CREDITORS","CONSTRUCTION INDUSTRY SCHEME","6721","R G JOYCE",14/4/2021 00:00:00,"246842",-50,"JO0019","R G JOYCE",1/4/2021 00:00:00,25/4/2021 00:00:00,"P01-2022"
"R&B","BALANCE SHEET (AUTHORITY)","CREDITORS","CONSTRUCTION INDUSTRY SCHEME","6721","CAPSER",14/4/2021 00:00:00,"246861",-148,"MO0041","CAPSER",1/4/2021 00:00:00,25/4/2021 00:00:00,"P01-2022"
"R&B","BALANCE SHEET (AUTHORITY)","CL SUSPENSE","INSURANCE SUSPENSE","6861","MARSH UK  LTD",25/4/2021 00:00:00,"246567",24775.26,"MA0012","MARSH UK  LTD",1/4/2021 00:00:00,25/4/2021 00:00:00,"P01-2022"
"R&B","BALANCE SHEET (AUTHORITY)","CL SUSPENSE","INSURANCE SUSPENSE","6861","MARSH UK  LTD",25/4/2021 00:00:00,"246984",-10771.87,"MA0012","MARSH UK  LTD",1/4/2021 00:00:00,25/4/2021 00:00:00,"P01-2022"
"R&B","REVENUE SUSPENSE (AUTHORITY)","GENERAL SUSPENSE","GENERAL SUSPENSE","6890","DAISY COMMUNICATIONS LTD",19/4/2021 00:00:00,"246943",280.48,"ID0002","DAISY COMMUNICATIONS LTD",1/4/2021 00:00:00,25/4/2021 00:00:00,"P01-2022"
"R&B","REVENUE SUSPENSE (AUTHORITY)","GENERAL SUSPENSE","GENERAL SUSPENSE","6890","DAISY COMMUNICATIONS LTD",19/4/2021 00:00:00,"246944",2986.5,"ID0002","DAISY COMMUNICATIONS LTD",1/4/2021 00:00:00,25/4/2021 00:00:00,"P01-2022"
"P&V","CAR PARK INCOME","INCOME","CAR PARKING INCOME","9730","P111561-SERVICE-Cash Collection Charges - Apr 2021 - GPP",22/4/2021 00:00:00,"246411",60,"PA0372","PARKINGEYE LIMITED",1/4/2021 00:00:00,25/4/2021 00:00:00,"P01-2022"
"P&V","CAR PARK INCOME","INCOME","CAR PARKING INCOME","9730","P111545-SERVICE-Paid Parking Tickets used GPP - Mar 2020",22/4/2021 00:00:00,"246659",5.74,"PA0372","PARKINGEYE LIMITED",1/4/2021 00:00:00,25/4/2021 00:00:00,"P01-2022"
"P&V","CAR PARK INCOME","INCOME","CAR PARKING INCOME","9730","P111545-SERVICE-Paid Parking Tickets used FG - Mar 2020",22/4/2021 00:00:00,"246659",3.39,"PA0372","PARKINGEYE LIMITED",1/4/2021 00:00:00,25/4/2021 00:00:00,"P01-2022"
"P&V","CAR PARK INCOME","INCOME","CAR PARKING INCOME","9730","P111545-SERVICE-Paid Parking Tickets used WAG - Mar 2020",22/4/2021 00:00:00,"246659",1.84,"PA0372","PARKINGEYE LIMITED",1/4/2021 00:00:00,25/4/2021 00:00:00,"P01-2022"
"P&V","CAR PARK INCOME","INCOME","CAR PARKING INCOME","9730","P111545-SERVICE-P&D Revenue Mar - Clayton (20%)",22/4/2021 00:00:00,"246661",107.3,"PA0372","PARKINGEYE LIMITED",1/4/2021 00:00:00,25/4/2021 00:00:00,"P01-2022"
"P&V","CAR PARK INCOME","INCOME","CAR PARKING INCOME","9730","P111545-SERVICE-P&D Revenue Mar - GPP (5%)",22/4/2021 00:00:00,"246661",147.28,"PA0372","PARKINGEYE LIMITED",1/4/2021 00:00:00,25/4/2021 00:00:00,"P01-2022"
"P&V","CAR PARK INCOME","INCOME","CAR PARKING INCOME","9730","P111545-SERVICE-P&D Revenue Mar - WAG (5%)",22/4/2021 00:00:00,"246661",55.79,"PA0372","PARKINGEYE LIMITED",1/4/2021 00:00:00,25/4/2021 00:00:00,"P01-2022"
"P&V","CAR PARK INCOME","INCOME","CAR PARKING INCOME","9730","P111545-SERVICE-P&D Revenue Mar - FG (5%)",22/4/2021 00:00:00,"246661",136.1,"PA0372","PARKINGEYE LIMITED",1/4/2021 00:00:00,25/4/2021 00:00:00,"P01-2022"
"P&V","CAR PARK INCOME","INCOME","CAR PARKING INCOME","9730","P111545-SERVICE-P&D Revenue Mar - CMM (20%)",22/4/2021 00:00:00,"246661",75.93,"PA0372","PARKINGEYE LIMITED",1/4/2021 00:00:00,25/4/2021 00:00:00,"P01-2022"
"P&V","CAR PARK INCOME","INCOME","CAR PARKING INCOME","9730","P111545-SERVICE-P&D Revenue Mar - Hooks M (20%)",22/4/2021 00:00:00,"246661",340.74,"PA0372","PARKINGEYE LIMITED",1/4/2021 00:00:00,25/4/2021 00:00:00,"P01-2022"
